{"text_format":"1","workbook":"xlsx","n_sheets":3,"sheets":["Таблица 2.2","стр.1_4","стр.5_6"],"not_rendered":{"charts":0,"images":0,"macros":0,"external_links":0,"defined_names":9,"comments":0,"pivot_tables":0},"unopened":[],"bounds":{"document_bytes":16777216,"sheet_cells":100000,"rows_first":2000,"rows_last":500,"rows_between":2000,"halvings":0,"cell_chars":16384,"cell_head_chars":4096},"cells_cut":0,"cells_raw":0,"read":"whole","date_system":"1900"}

{"sheet":"Таблица 2.2","index":0,"n_rows":139,"n_cols":10,"rows_kept":139,"cut":false,"hidden":false,"merged":[[64,0,64,7],[53,0,53,7],[20,0,20,7],[31,0,31,7],[50,0,50,7],[0,6,0,7],[8,0,8,7],[14,0,14,7],[18,0,18,7],[2,0,2,7],[4,0,5,0],[4,1,5,1],[4,2,5,2],[4,3,4,7],[66,0,66,7],[71,0,71,7],[85,0,85,7],[135,0,135,7],[90,0,90,7],[94,0,94,7],[81,8,81,11],[32,8,32,11],[34,8,34,11],[40,8,40,11],[41,8,41,11],[42,8,42,11],[44,8,44,11],[45,8,45,11],[46,8,46,11],[47,8,47,11],[43,8,43,11],[48,8,48,11]]}
[null,null,null,null,null,null,"Таблица 2.2"]
[]
["Показатели по поступлениям и выплатам бюджетного учреждения (подразделения), детализировано"]
[null,null,null,null,null,null,null,"карусель"]
["№ п\\п","Наименование показателя","Код бюджетной классификации","Очередной финансовый год"]
[null,null,null,"I кв.","II кв.","III кв.","IV кв.","Всего "]
["1.","Остаток средств на начало планируемого года","Х",0,null,null,null,{"$f":"SUM(D7:G7)","v":0}]
["2.","Поступления, всего:","Х",{"$f":"SUM(D10:D14)","v":3677981},{"$f":"SUM(E10:E14)","v":3417506},{"$f":"SUM(F10:F14)","v":2046916},{"$f":"SUM(G10:G14)","v":2130294},{"$f":"SUM(D8:G8)","v":11272697}]
["в том числе:"]
["2.1.","Субсидии на выполнении муниципального задания, в том числе:",null,{"$f":"D18","v":3326400},{"$f":"E18","v":3224625},{"$f":"F18","v":1864035},{"$f":"G18","v":1957412},10372472]
["2.2.","Субсидии на иные цели",null,{"$f":"D94","v":168700},{"$f":"E94","v":0},0,0,168700]
["2.3.","Бюджетные инвестиции",null,null,null,null,null,0]
["2.4.","Поступления от оказания бюджетным учреждением услуг (выполнение работ), предоставление которых для физических и юридических лиц осуществляется на платной основе",null,null,null,null,null,0]
["2.5.","Поступления от иной приносящей доход деятельности, всего:",null,{"$f":"D16+D17","v":182881},{"$f":"E16+E17","v":192881},{"$f":"F16+F17","v":182881},{"$f":"G16+G17","v":172882},731525]
["в том числе:"]
["2.5.1.","от сдачи имущества в аренду",null,null,null,null,null,0]
["2.5.2.","иные поступления",null,{"$f":"D64","v":182881},{"$f":"E64","v":192881},{"$f":"F64","v":182881},{"$f":"G64","v":172882},731525]
["3.","Выплаты за счет субсидии на финансовое обеспечение выполнения муниципального задания из местного бюджета, всего:","Х",{"$f":"D20+D31+D50+D53","v":3326400},{"$f":"E20+E31+E50+E53","v":3224625},{"$f":"F20+F31+F50+F53","v":1864035},{"$f":"G20+G31+G50+G53","v":1957412},10372472]
["в том числе:"]
["3.1.","Расходы на выплаты персоналу в целях обеспечения выполнения функций государственными (муниципальными) органами, казенными учреждениями, органами управления государственными внебюджетными фондами, всего",100,{"$f":"SUM(D22:D30)","v":2604000},{"$f":"SUM(E22:E30)","v":3189900},{"$f":"SUM(F22:F30)","v":1829310},{"$f":"SUM(G22:G30)","v":1922687},9545897]
["из них:"]
["3.1.1.","Заработная плата","075;0701;69 1 01 07300;111 (211)",600000,650000,250000,{"$f":"100000+500000","v":600000},2100000]
["3.1.1.","Заработная плата","075;0701;69 1 01 07300;111 (266)",10000,null,null,null,10000]
["3.1.1.","Заработная плата","075;0701;69 1 01 76700;111 (211)",{"$f":"1100000+260000","v":1360000},1800000,{"$f":"1275000-120000","v":1155000},{"$f":"1000000-123283","v":876717},{"$f":"SUM(D24:G24)","v":5191717}]
["3.1.1.","Заработная плата","075;0701;69 1 01 76700;111 (266)",30000,null,null,null,{"$f":"SUM(D25:G25)","v":30000}]
["3.1.1.","Заработная плата","075;0701;69 1 01 72200;111 (211)",null,null,null,null,{"$f":"SUM(D26:G26)","v":0}]
["3.1.2.","Прочие выплаты","075;0701;69 1 01 07300;112 (212)",null,null,null,null,0]
["3.1.3.","Начисления на выплаты по оплате труда","075;0701;69 1 01 07300;119 (213)",184220,196300,75500,181200,{"$f":"SUM(D28:G28)","v":637220}]
["3.1.3.","Начисления на выплаты по оплате труда ","075;0701;69 1 01 72200;119 (213)",null,null,null,null,{"$f":"SUM(D29:G29)","v":0}]
["3.1.3.","Начисления на выплаты по оплате труда","075;0701;69 1 01 76700;119 (213)",419780,543600,348810,{"$f":"264770","v":264770},{"$f":"SUM(D30:G30)","v":1576960}]
["3.2.","Закупка товаров, работ и услуг для обеспечения государственных (муниципальных) нужд, всего",200,{"$f":"SUM(D33:D49)","v":509950},{"$f":"SUM(E33:E49)","v":34725},34725,34725,{"$f":"SUM(D31:G31)","v":614125},null,{"$f":"H31+H71+H117+H120+H121+H130+H131+H123+'Таблица 2.2'!H134","v":1345650}]
["из них:"]
["3.2.1.","Услуги связи","075;0701;69 1 01 07300;244 (221)",2500,2500,2500,2500,10000]
["3.2.2.","Транспортные услуги","075;0701;69 1 01 07300;244 (222)",null,null,null,null,0]
["3.2.3.","Коммунальные услуги","075;0701;69 1 01 07300;247 (223)",{"$f":"400000-25000","v":375000},null,null,null,375000]
["3.2.3.","Коммунальные услуги обл","075;0701;69 1 01 07300;244 (223)",25000,null,null,null,{"$f":"SUM(D36:G36)","v":25000}]
["3.2.4.","Арендная плата за пользование имуществом","075;0701;69 1 01 07300;244 (224)",null,null,null,null,0]
["3.2.5.","Работы, услуги по содержанию имущества","075;0701;69 1 01 07300;244 (225)",5000,null,null,null,5000,null,{"$f":"H33+H36+H38+H39+H41+H42+H43+H44+H45+H46+H47+H49","v":239125}]
["3.2.6.","Прочие работы, услуги","075;0701;69 1 01 07300;244 (226)",5000,null,null,null,5000]
["3.2.7.","Прочие расходы","075;0701;69 1 01 07300;244 (290)",null,null,null,null,0]
["3.2.8.","Увеличение стоимости основных средств","075;0701;69 1 01 07300;244 (310)",null,null,null,null,{"$f":"SUM(D41:G41)","v":0}]
["3.2.8.","Увеличение стоимости основных средств","075;0701;69 1 01 76700;244 (310)",47740,null,null,null,{"$f":"SUM(D42:G42)","v":47740}]
["3.2.9.","Увеличение стоимости материальных запасов","075;0701;69 1 01 07300;244 (346)",null,null,null,null,{"$f":"SUM(D43:G43)","v":0}]
["3.2.9.","Увеличение стоимости материальных запасов","075;0701;69 1 01 07300;244 (342)",17990,null,null,null,{"$f":"SUM(D44:G44)","v":17990}]
["3.2.9.","Увеличение стоимости материальных запасов","075;0701;69 1 01 07300;244 (341)",null,null,null,null,{"$f":"SUM(D45:G45)","v":0}]
["3.2.9.","Увеличение стоимости материальных запасов","075;0701;69 1 01 07300;244 (345)",null,null,null,null,0]
["3.2.9.","Увеличение стоимости материальных запасов","075;0701;69 10 1 76900;244 (342)",25000,{"$f":"25000+7774-548-1","v":32225},{"$f":"25000+7774-548-1","v":32225},{"$f":"25000+7774-548-1","v":32225},121675]
["3.2.9.","Увеличение стоимости материальных запасов","075;0701;69 10 1 76900;244 (341)",null,null,null,null,0]
["3.2.9.","Увеличение стоимости материальных запасов","075;0701;69 10 1 76900;244 (345)",6720,null,null,null,6720]
["3.3.","Социальное обеспечение и иные выплаты населению, всего:",300,{"$f":"D52","v":0},{"$f":"E52","v":0},{"$f":"F52","v":0},{"$f":"G52","v":0},0]
["из них:"]
["3.3.1.","Пособия по социальной помощи населению",null,null,null,null,null,0]
["3.4.","Иные бюджетные ассигнования, всего:",800,{"$f":"SUM(D55:D63)","v":212450},{"$f":"SUM(E55:E63)","v":0},0,0,212450]
["из них:"]
["3.4.1.","Уплата прочих налогов, сборов","075;0701;69 1 01 07300;831 (296)",null,null,null,null,{"$f":"SUM(D55:G55)","v":0}]
["3.4.1.","Уплата налога на имущество организаций и земельного налога","075;0701;69 1 01 07300;851 (291)",204950,null,null,null,204950]
["3.4.1.","Уплата налога на имущество организаций и земельного налога","075;0701;69 1 01 72200;851 (291)",null,null,null,null,{"$f":"SUM(D57:G57)","v":0}]
["3.4.2.","Уплата прочих налогов, сборов","075;0701;69 1 01 07300;852 (291)",null,null,null,null,0]
["3.4.3.","Уплата иных платежей","075;0701;69 1 01 07300;853 (293)",5000,null,null,null,5000]
["3.4.3.","Уплата иных платежей","075;0701;69 1 01 07300;853 (297)",null,null,null,null,0]
["3.4.3.","Уплата иных платежей","075;0701;69 1 01 79200;851 (291)",null,null,null,null,0]
["3.4.4.","Уплата иных платежей","075;0701;69 1 01 07300;831 (297)",null,null,null,null,0]
["3.4.5.","Уплата налога на имущество организаций и земельного налога","075;0701;69 1 01 07300;851 (294)",2500,null,null,null,2500]
["4.","Выплаты за счет поступлений от оказания услуг (выполнения работ) на платной основе и от иной приносящей доход деятельности, всего:","Х",{"$f":"D66+D71+D85","v":182881},{"$f":"E66+E71+E85","v":192881},{"$f":"F66+F71+F85","v":182881},{"$f":"G66+G71+G85","v":172882},731525]
["в том числе:"]
["4.1.","Расходы на выплаты персоналу в целях обеспечения выполнения функций государственными (муниципальными) органами, казенными учреждениями, органами управления государственными внебюджетными фондами, всего",100,{"$f":"SUM(D68:D70)","v":0},{"$f":"SUM(E68:E70)","v":0},{"$f":"SUM(F68:F70)","v":0},{"$f":"SUM(G68:G70)","v":0},{"$f":"SUM(D66:G66)","v":0}]
["из них:"]
["4.1.1.","Заработная плата",null,null,null,null,null,{"$f":"SUM(D68:G68)","v":0}]
["4.1.2.","Прочие выплаты",null,null,null,null,null,{"$f":"SUM(D69:G69)","v":0}]
["4.1.3.","Начисления на выплаты по оплате труда",null,null,null,null,null,{"$f":"SUM(D70:G70)","v":0}]
["4.2.","Закупка товаров, работ и услуг для обеспечения государственных (муниципальных) нужд, всего",200,{"$f":"SUM(D73:D84)","v":182881},{"$f":"SUM(E73:E84)","v":192881},182881,172882,{"$f":"SUM(D71:G71)","v":731525}]
["из них:"]
["4.2.1.","Услуги связи","075;0701;00 0 00 00000 244  (211)",null,null,null,null,{"$f":"SUM(D73:G73)","v":0}]
["4.2.2.","Транспортные услуги","075;0701;00 0 00 00000 244  (213)",null,null,null,null,0]
["4.2.3.","Коммунальные услуги","075;0701;00 0 00 00000 244  (223)",null,null,null,null,0]
["4.2.4.","Арендная плата за пользование имуществом","075;0701;00 0 00 00000 244  (224)",null,null,null,null,0]
["4.2.5.","Работы, услуги по содержанию имущества","075;0701;00 0 00 00000 244  (225)",null,null,null,null,0]
["4.2.6.","Прочие работы, услуги","075;0701;00 0 00 00000 244  (226)",null,null,null,null,0]
["4.2.7.","Прочие расходы","075;0701;00 0 00 00000 244  (290)",null,null,null,null,0]
["4.2.8.","Увеличение стоимости основных средств","075;0701;00 0 00 00000 244  (310)",null,null,null,null,0]
["4.2.9.","Увеличение стоимости материальных запасов","075;0701;00 0 00 00000 244  (341)",null,null,null,null,0]
["4.2.10.","Увеличение стоимости материальных запасов","075;0701;00 0 00 00000 244  (342)",182881,{"$f":"182881+10000","v":192881},182881,{"$f":"182882-10000","v":172882},731525]
["4.2.11.","Увеличение стоимости материальных запасов","075;0701;00 0 00 00000 244  (344)",null,null,null,null,0]
["4.2.12.","Увеличение стоимости материальных запасов","075;0701;00 0 00 00000 244  (346)",null,null,null,null,0]
["4.3.","Иные бюджетные ассигнования, всего:",800,{"$f":"SUM(D87:D89)","v":0},{"$f":"SUM(E87:E89)","v":0},{"$f":"SUM(F87:F89)","v":0},{"$f":"SUM(G87:G89)","v":0},{"$f":"SUM(D85:G85)","v":0}]
["из них:"]
["4.3.1.","Уплата налога на имущество организаций и земельного налога",null,null,null,null,null,{"$f":"SUM(D87:G87)","v":0}]
["4.3.2.","Уплата прочих налогов, сборов",null,null,null,null,null,{"$f":"SUM(D88:G88)","v":0}]
["4.3.3.","Уплата иных платежей",null,null,null,null,null,{"$f":"SUM(D89:G89)","v":0}]
["5.","Выплаты за счет поступлений на осуществление бюджетных инвестиций, всего ","Х",{"$f":"SUM(D92:D93)","v":0},{"$f":"SUM(E92:E93)","v":0},{"$f":"SUM(F92:F93)","v":0},{"$f":"SUM(G92:G93)","v":0},{"$f":"SUM(D90:G90)","v":0}]
["в том числе:"]
[null,null,null,null,null,null,null,0]
[null,null,null,null,null,null,null,0]
["6.","Выплаты за счет субсидии на иные цели, всего","Х",{"$f":"SUM(D96:D134)","v":168700},{"$f":"SUM(E96:E134)","v":0},{"$f":"SUM(F96:F134)","v":0},{"$f":"SUM(G96:G134)","v":0},{"$f":"SUM(D94:G94)","v":168700}]
["в том числе:"]
["6.1","Заработная плата (софинансирование)","075;0701;37 1 01 S2300;111 (211)",null,null,null,null,{"$f":"SUM(D96:G96)","v":0},111,{"$f":"H96+H98+H108","v":0}]
["6.2","Начисления на выплаты по оплате труда (софинансирование)","075;0701;37 1 01 S2300;119 (213)",null,null,null,null,{"$f":"SUM(D97:G97)","v":0},119,{"$f":"H116","v":0}]
["6.3","Заработная плата (область)","075;0701;37 1 01 72300;111 (211)",null,null,null,null,{"$f":"SUM(D98:G98)","v":0},244,{"$f":"H102+H103+H104+H105+H106+H107+H117+H123","v":168700}]
["6.4","Начисления на выплаты по оплате труда (область))","075;0701;37 1 01 72300;119 (213)",null,null,null,null,0,243,{"$f":"H130+H131+H134","v":0}]
["6.5","Увеличение стоимости основных средств","075;0701;69 1 04 79Г43;244 (225)",null,null,null,null,{"$f":"SUM(D100:G100)","v":0},null,{"$f":"H123","v":0}]
["6.5","Увеличение стоимости основных средств","075;0701;69 1 04 79Г43;244 (226)",null,null,null,null,0,null,{"$f":"H124","v":0}]
["6.5","Увеличение стоимости основных средств","075;0701;69 1 04 79Г43;244 (310)",{"$f":"84350","v":84350},null,null,null,84350,null,{"$f":"H125","v":0}]
["6.5","Увеличение стоимости основных средств","075;0701;69 1 04 79Г43;244 (346)",null,null,null,null,0]
["6.6",null,"075;0701;69 1 04 15800;244 (310)",{"$f":"84350","v":84350},null,null,null,84350]
["6.6",null,"075;0701;69 1 04 15800;244 (226)",null,null,null,null,0]
["6.7","Уплата налога на имущество организаций и земельного налога (обл. кредиторка)","075;0701;69 1 04 15800;244 (225)",null,null,null,null,{"$f":"SUM(D106:G106)","v":0}]
["6.8","Начисления на выплаты по оплате труда (область)","075;0701;69 1 04 15800;244 (346)",null,null,null,null,0]
["6.9","Начисления на выплаты по оплате труда (кредиторка)","075;0701;69 1 06 7671Д;111 (211)",null,null,null,null,0]
["6.10","Коммунальные услуги (кредиторка)","075;0701;69 1 06 7671Д;119 (213)",null,null,null,null,0]
["6.11","Уплата иных платежей (кредиторка)","075;0701;69 1 03 72400;853 (293)",null,null,null,null,0]
["6.12","Работы, услуги по содержанию имущества (кредиторка)","075;0701;69 1 03 72400;244 (225)",null,null,null,null,0]
["6.13","Прочие работы, услуги (кредиторка)","075;0701;69 1 03 72400;244 (226)",null,null,null,null,0]
["6.14","Заработная плата (область)","075;0701;69 1 07 78А00;111 211",null,null,null,null,0]
["6.15","Начисления на выплаты по оплате труда (область)","075;0701;69 1 07 78А00;119 213",null,null,null,null,0]
[null,null,"075;0701;69 1 01 07300;244 (346)",null,null,null,null,0]
["6.16","Начисления на выплаты по оплате труда (местн)","075;0701;69 1 03 073Г0;119 (213) ",null,null,null,null,0]
["6.17","Услуги связи (кредиторка)","075;0701;69 1 03 073Г0;244 (221)",null,null,null,null,{"$f":"SUM(D117:G117)","v":0}]
["6.18","Коммунальные услуги (кредиторка)","075;0701;69 1 03 073Г0;244 (223) ",null,null,null,null,0]
["6.19","Уплата налога на имущество организаций и земельного налога (кредиторка)","075;0701;69 1 03 073Г0;851 (291)",null,null,null,null,0]
["6.20","Коммунальные услуги (кредиторка)","075;0701;69 1 03 073Г0;244 (223)",null,null,null,null,0]
["6.21","Работы, услуги по содержанию имущества (кредиторка)","075;0701;69 1 03 073Г0;244 (225)",null,null,null,null,0]
["6.22","Прочие работы, услуги(кредиторка)","075;0701;69 1 03 073Г0;244 (226)",null,null,null,null,0]
["6.23","Увеличение стоимости материальных запасов (кредиторка)","075;0701;69 1 03 073Г0;244 (342)",null,null,null,null,0]
["6.24","Увеличение стоимости материальных запасов (кредиторка)","075;0701;69 1 03 073Г0;244 (291)",null,null,null,null,0]
["6.25","Уплата иных платежей (кредиторка)","075;0701;69 1 01 073Г0;853 (297)",null,null,null,null,0]
["6.26","Утепление кровли и фасадов зданий, замена оконных и дверных блоков на пластиковые","075;0701;76 2 01 10180;244 (226)",null,null,null,null,0]
["6.27","Начисления на выплаты по оплате труда обл.(кредиторка 2018г.)","075;0701;69 1 03 72200;119 (213)",null,null,null,null,0]
["6.28","Коммунальные услуги обл.(кредиторка 2018г.)","075;0701;69 1 03 72200;244 (223)",null,null,null,null,0]
["6.29","Уплата иных платежей(кредиторка)","075;0701;69 1 03 073Г0;853 (293)",null,null,null,null,0]
["6.30","Проведение капитального и текущего ремонтов МБДОУ детский сад \"Малыш\"(областной)","075;0701;69 1 05 72Г00;243 225",null,null,null,null,0]
["6.31","Проведение капитального и текущего ремонтов МБДОУ детский сад \"Малыш\"(софин.)","075;0701;69 1 05 S2Г00;243 225",null,null,null,null,0]
["6.30","Проведение капитального и текущего ремонтов МБДОУ детский сад \"Малыш\"(областной)","075;0701;69 1 05 72Г00;244 344",null,null,null,null,0]
["6.31","Проведение капитального и текущего ремонтов МБДОУ детский сад \"Малыш\"(софин.)","075;0701;69 1 05 S2Г00;244 344",null,null,null,null,{"$f":"SUM(D133:G133)","v":0}]
["6.32","Оказание услуг по осуществлению строительного контроля за выполнением работ по замене деревянных оконных дверных блоков на энергосберегающие,за выполнением работ по капитальному ремонту крыши МБДОУ детский сад \"Малыш\"(местн.)","075;0701;69 1 05 24040;243 226 ",null,null,null,null,0]
["7.","Остаток средств на конец планируемого года","Х",{"$f":"SUM(D137:D139)","v":0},{"$f":"SUM(E137:E139)","v":0},{"$f":"SUM(F137:F139)","v":0},{"$f":"SUM(G137:G139)","v":0},0]
["в том числе:"]
["7.1.","остаток субсидии на выполнение муниципального задания",null,null,null,null,null,0]
["7.2.","остаток целевой субсидии",null,null,null,null,null,0]
["7.3.","остаток средств от оказания услуг (выполнения работ) на платной основе и от иной приносящей доход деятельности",null,null,null,null,null,0]

{"sheet":"стр.1_4","index":1,"n_rows":130,"n_cols":156,"rows_kept":130,"cut":false,"hidden":false,"merged":[[99,122,99,134],[99,135,99,147],[100,122,100,134],[100,135,100,147],[122,0,122,160],[111,135,111,147],[111,148,111,160],[112,0,112,74],[112,75,112,82],[112,83,112,95],[112,96,112,108],[112,109,112,121],[112,122,112,134],[112,135,112,147],[112,148,112,160],[111,0,111,74],[111,75,111,82],[111,83,111,95],[111,96,111,108],[111,109,111,121],[111,122,111,134],[109,135,109,147],[109,148,109,160],[110,0,110,74],[124,0,124,160],[125,0,125,160],[126,0,126,160],[129,0,129,160],[113,135,113,147],[113,148,113,160],[114,0,114,74],[114,75,114,82],[114,83,114,95],[114,96,114,108],[114,109,114,121],[114,122,114,134],[114,135,114,147],[114,148,114,160],[113,0,113,74],[113,75,113,82],[113,83,113,95],[113,96,113,108],[113,109,113,121],[113,122,113,134],[110,75,110,82],[110,83,110,95],[110,96,110,108],[110,109,110,121],[110,122,110,134],[110,135,110,147],[110,148,110,160],[109,0,109,74],[109,75,109,82],[109,83,109,95],[109,96,109,108],[109,109,109,121],[109,122,109,134],[107,135,107,147],[107,148,107,160],[108,0,108,74],[108,75,108,82],[108,83,108,95],[108,96,108,108],[108,109,108,121],[108,122,108,134],[108,135,108,147],[108,148,108,160],[107,0,107,74],[107,75,107,82],[107,83,107,95],[107,96,107,108],[107,109,107,121],[107,122,107,134],[105,135,105,147],[105,148,105,160],[106,0,106,74],[106,75,106,82],[106,83,106,95],[106,96,106,108],[106,109,106,121],[106,122,106,134],[106,135,106,147],[106,148,106,160],[105,0,105,74],[105,75,105,82],[105,83,105,95],[105,96,105,108],[105,109,105,121],[105,122,105,134],[98,135,98,147],[98,148,98,160],[101,0,101,74],[101,75,101,82],[101,83,101,95],[101,96,101,108],[101,109,101,121],[101,122,101,134],[101,135,101,147],[101,148,101,160],[98,0,98,74],[98,75,98,82],[98,83,98,95],[98,96,98,108],[98,109,98,121],[98,122,98,134],[99,0,99,74],[99,83,99,95],[99,96,99,108],[99,109,99,121],[100,0,100,74],[100,83,100,95],[100,96,100,108],[100,109,100,121],[93,135,93,147],[93,148,93,160],[94,0,94,74],[94,75,94,82],[94,83,94,95],[94,96,94,108],[94,109,94,121],[94,122,94,134],[94,135,94,147],[94,148,94,160],[93,0,93,74],[93,75,93,82],[93,83,93,95],[93,96,93,108],[93,109,93,121],[93,122,93,134],[91,135,91,147],[91,148,91,160],[92,0,92,74],[92,75,92,82],[92,83,92,95],[92,96,92,108],[92,109,92,121],[92,122,92,134],[92,135,92,147],[92,148,92,160],[91,0,91,74],[91,75,91,82],[91,83,91,95],[91,96,91,108],[91,109,91,121],[91,122,91,134],[89,135,89,147],[89,148,89,160],[90,0,90,74],[90,75,90,82],[90,83,90,95],[90,96,90,108],[90,109,90,121],[90,122,90,134],[90,135,90,147],[90,148,90,160],[89,0,89,74],[89,75,89,82],[89,83,89,95],[89,96,89,108],[89,109,89,121],[89,122,89,134],[87,135,87,147],[87,148,87,160],[88,0,88,74],[88,75,88,82],[88,83,88,95],[88,96,88,108],[88,109,88,121],[88,122,88,134],[88,135,88,147],[88,148,88,160],[87,0,87,74],[87,75,87,82],[87,83,87,95],[87,96,87,108],[87,109,87,121],[87,122,87,134],[85,135,85,147],[85,148,85,160],[86,0,86,74],[86,75,86,82],[86,83,86,95],[86,96,86,108],[86,109,86,121],[86,122,86,134],[86,135,86,147],[86,148,86,160],[85,0,85,74],[85,75,85,82],[85,83,85,95],[85,96,85,108],[85,109,85,121],[85,122,85,134],[83,135,83,147],[83,148,83,160],[84,0,84,74],[84,75,84,82],[84,83,84,95],[84,96,84,108],[84,109,84,121],[84,122,84,134],[84,135,84,147],[84,148,84,160],[83,0,83,74],[83,75,83,82],[83,83,83,95],[83,96,83,108],[83,109,83,121],[83,122,83,134],[81,135,81,147],[81,148,81,160],[82,0,82,74],[82,75,82,82],[82,83,82,95],[82,96,82,108],[82,109,82,121],[82,122,82,134],[82,135,82,147],[82,148,82,160],[81,0,81,74],[81,75,81,82],[81,83,81,95],[81,96,81,108],[81,109,81,121],[81,122,81,134],[79,135,79,147],[79,148,79,160],[80,0,80,74],[80,75,80,82],[80,83,80,95],[80,96,80,108],[80,109,80,121],[80,122,80,134],[80,135,80,147],[80,148,80,160],[79,0,79,74],[79,75,79,82],[79,83,79,95],[79,96,79,108],[79,109,79,121],[79,122,79,134],[77,135,77,147],[77,148,77,160],[78,0,78,74],[78,75,78,82],[78,83,78,95],[78,96,78,108],[78,109,78,121],[78,122,78,134],[78,135,78,147],[78,148,78,160],[77,0,77,74],[77,75,77,82],[77,83,77,95],[77,96,77,108],[77,109,77,121],[77,122,77,134],[75,135,75,147],[75,148,75,160],[76,0,76,74],[76,75,76,82],[76,83,76,95],[76,96,76,108],[76,109,76,121],[76,122,76,134],[76,135,76,147],[76,148,76,160],[75,0,75,74],[75,75,75,82],[75,83,75,95],[75,96,75,108],[75,109,75,121],[75,122,75,134],[73,135,73,147],[73,148,73,160],[74,0,74,74],[74,75,74,82],[74,83,74,95],[74,96,74,108],[74,109,74,121],[74,122,74,134],[74,135,74,147],[74,148,74,160],[73,0,73,74],[73,75,73,82],[73,83,73,95],[73,96,73,108],[73,109,73,121],[73,122,73,134],[71,135,71,147],[71,148,71,160],[72,0,72,74],[72,75,72,82],[72,83,72,95],[72,96,72,108],[72,109,72,121],[72,122,72,134],[72,135,72,147],[72,148,72,160],[71,0,71,74],[71,75,71,82],[71,83,71,95],[71,96,71,108],[71,109,71,121],[71,122,71,134],[69,135,69,147],[69,148,69,160],[70,0,70,74],[70,75,70,82],[70,83,70,95],[70,96,70,108],[70,109,70,121],[70,122,70,134],[70,135,70,147],[70,148,70,160],[69,0,69,74],[69,75,69,82],[69,83,69,95],[69,96,69,108],[69,109,69,121],[69,122,69,134],[67,135,67,147],[67,148,67,160],[68,0,68,74],[68,75,68,82],[68,83,68,95],[68,96,68,108],[68,109,68,121],[68,122,68,134],[68,135,68,147],[68,148,68,160],[67,0,67,74],[67,75,67,82],[67,83,67,95],[67,96,67,108],[67,109,67,121],[67,122,67,134],[65,135,65,147],[65,148,65,160],[66,0,66,74],[66,75,66,82],[66,83,66,95],[66,96,66,108],[66,109,66,121],[66,122,66,134],[66,135,66,147],[66,148,66,160],[65,0,65,74],[65,75,65,82],[65,83,65,95],[65,96,65,108],[65,109,65,121],[65,122,65,134],[63,135,63,147],[63,148,63,160],[64,0,64,74],[64,75,64,82],[64,83,64,95],[64,96,64,108],[64,109,64,121],[64,122,64,134],[64,135,64,147],[64,148,64,160],[63,0,63,74],[63,75,63,82],[63,83,63,95],[63,96,63,108],[63,109,63,121],[63,122,63,134],[61,135,61,147],[61,148,61,160],[62,0,62,74],[62,75,62,82],[62,83,62,95],[62,96,62,108],[62,109,62,121],[62,122,62,134],[62,135,62,147],[62,148,62,160],[61,0,61,74],[61,75,61,82],[61,83,61,95],[61,96,61,108],[61,109,61,121],[61,122,61,134],[59,135,59,147],[59,148,59,160],[60,0,60,74],[60,75,60,82],[60,83,60,95],[60,96,60,108],[60,109,60,121],[60,122,60,134],[60,135,60,147],[60,148,60,160],[59,0,59,74],[59,75,59,82],[59,83,59,95],[59,96,59,108],[59,109,59,121],[59,122,59,134],[57,135,57,147],[57,148,57,160],[58,0,58,74],[58,75,58,82],[58,83,58,95],[58,96,58,108],[58,109,58,121],[58,122,58,134],[58,135,58,147],[58,148,58,160],[57,0,57,74],[57,75,57,82],[57,83,57,95],[57,96,57,108],[57,109,57,121],[57,122,57,134],[55,135,55,147],[55,148,55,160],[56,0,56,74],[56,75,56,82],[56,83,56,95],[56,96,56,108],[56,109,56,121],[56,122,56,134],[56,135,56,147],[56,148,56,160],[55,0,55,74],[55,75,55,82],[55,83,55,95],[55,96,55,108],[55,109,55,121],[55,122,55,134],[48,135,48,147],[48,148,48,160],[49,135,50,147],[49,148,50,160],[50,0,50,74],[49,0,49,74],[53,135,53,147],[53,148,53,160],[54,0,54,74],[54,75,54,82],[54,83,54,95],[54,96,54,108],[54,109,54,121],[54,122,54,134],[54,135,54,147],[54,148,54,160],[53,0,53,74],[53,75,53,82],[53,83,53,95],[53,96,53,108],[53,109,53,121],[53,122,53,134],[51,148,51,160],[52,0,52,74],[52,75,52,82],[52,83,52,95],[52,96,52,108],[52,109,52,121],[52,122,52,134],[52,135,52,147],[52,148,52,160],[51,0,51,74],[51,75,51,82],[51,83,51,95],[51,96,51,108],[51,109,51,121],[51,122,51,134],[51,135,51,147],[46,148,46,160],[47,0,47,74],[47,75,47,82],[47,83,47,95],[47,96,47,108],[47,109,47,121],[47,122,47,134],[47,135,47,147],[47,148,47,160],[49,75,50,82],[49,83,50,95],[49,96,50,108],[49,109,50,121],[49,122,50,134],[48,0,48,74],[48,75,48,82],[48,83,48,95],[48,96,48,108],[48,109,48,121],[48,122,48,134],[45,0,45,74],[46,0,46,74],[46,75,46,82],[46,83,46,95],[46,96,46,108],[46,109,46,121],[43,135,43,147],[43,148,43,160],[44,0,44,74],[44,75,45,82],[44,83,45,95],[44,96,45,108],[44,109,45,121],[44,122,45,134],[44,135,45,147],[44,148,45,160],[43,0,43,74],[43,75,43,82],[43,83,43,95],[43,96,43,108],[43,109,43,121],[43,122,43,134],[46,122,46,134],[46,135,46,147],[41,0,41,74],[41,75,42,82],[41,83,42,95],[41,96,42,108],[41,109,42,121],[41,122,42,134],[41,135,42,147],[41,148,42,160],[42,0,42,74],[38,135,39,147],[38,148,39,160],[39,0,39,74],[40,0,40,74],[40,75,40,82],[40,83,40,95],[40,96,40,108],[40,109,40,121],[40,122,40,134],[40,135,40,147],[38,0,38,74],[38,75,39,82],[38,83,39,95],[38,96,39,108],[38,109,39,121],[38,122,39,134],[40,148,40,160],[37,0,37,74],[37,75,37,82],[37,83,37,95],[37,96,37,108],[37,109,37,121],[37,122,37,134],[37,135,37,147],[37,148,37,160],[36,0,36,74],[36,75,36,82],[36,83,36,95],[36,96,36,108],[36,109,36,121],[36,122,36,134],[35,0,35,74],[35,75,35,82],[35,83,35,95],[35,96,35,108],[35,109,35,121],[35,122,35,134],[35,135,35,147],[35,148,35,160],[36,135,36,147],[36,148,36,160],[33,148,33,160],[34,0,34,74],[34,75,34,82],[34,83,34,95],[34,96,34,108],[34,109,34,121],[34,122,34,134],[34,135,34,147],[34,148,34,160],[32,0,32,74],[33,0,33,74],[33,75,33,82],[33,83,33,95],[33,96,33,108],[33,109,33,121],[30,135,30,147],[30,148,30,160],[31,0,31,74],[31,75,32,82],[31,83,32,95],[31,96,32,108],[31,109,32,121],[31,122,32,134],[31,135,32,147],[31,148,32,160],[30,0,30,74],[30,75,30,82],[30,83,30,95],[30,96,30,108],[30,109,30,121],[30,122,30,134],[33,122,33,134],[33,135,33,147],[28,135,28,147],[28,148,28,160],[29,0,29,74],[29,75,29,82],[29,83,29,95],[29,96,29,108],[29,109,29,121],[29,122,29,134],[29,135,29,147],[29,148,29,160],[28,0,28,74],[28,75,28,82],[28,83,28,95],[28,96,28,108],[28,109,28,121],[28,122,28,134],[26,135,26,147],[26,148,26,160],[27,0,27,74],[27,75,27,82],[27,83,27,95],[27,96,27,108],[27,109,27,121],[27,122,27,134],[27,135,27,147],[27,148,27,160],[26,0,26,74],[26,75,26,82],[26,83,26,95],[26,96,26,108],[26,109,26,121],[26,122,26,134],[18,10,18,119],[18,148,18,160],[19,148,19,160],[21,0,21,160],[23,0,25,74],[23,75,25,82],[23,83,25,95],[23,96,25,108],[23,109,23,160],[24,109,24,114],[24,141,24,143],[24,144,24,147],[24,148,25,160],[25,109,25,121],[25,122,25,134],[25,135,25,147],[24,115,24,117],[24,118,24,121],[24,122,24,127],[24,128,24,130],[24,131,24,134],[24,135,24,140],[14,0,14,26],[14,148,14,160],[15,27,15,119],[15,148,15,160],[16,148,16,160],[17,148,17,160],[11,148,12,160],[13,58,13,61],[13,62,13,64],[13,65,13,66],[13,68,13,82],[13,83,13,85],[13,86,13,88],[13,148,13,160],[10,96,10,98],[11,50,11,56],[11,57,11,59],[11,60,11,81],[11,82,11,84],[11,85,11,89],[11,90,11,92],[11,93,11,101],[7,126,7,138],[7,141,7,160],[8,126,8,127],[8,128,8,130],[8,131,8,132],[8,134,8,148],[8,149,8,151],[8,152,8,154],[1,126,1,160],[2,126,2,160],[3,126,3,160],[4,126,4,160],[5,126,5,160],[6,126,6,138],[6,141,6,160],[97,0,97,74],[97,75,97,82],[97,83,97,95],[97,96,97,108],[97,109,97,121],[97,122,97,134],[97,135,97,147],[97,148,97,160],[95,0,95,74],[95,75,95,82],[95,83,95,95],[95,96,95,108],[95,109,95,121],[96,0,96,74],[96,75,96,82],[96,83,96,95],[96,96,96,108],[96,109,96,121],[95,122,95,134],[95,135,95,147],[96,122,96,134],[96,135,96,147],[104,0,104,74],[104,75,104,82],[104,83,104,95],[104,96,104,108],[104,109,104,121],[104,122,104,134],[104,135,104,147],[104,148,104,160],[102,0,102,74],[102,75,102,82],[102,83,102,95],[102,96,102,108],[102,109,102,121],[102,122,102,134],[102,135,102,147],[102,148,102,160],[103,0,103,74],[103,75,103,82],[103,83,103,95],[103,96,103,108],[103,109,103,121],[103,122,103,134],[103,135,103,147],[103,148,103,160]]}
[]
[null,null,null,null,null,null,null,null,null,null,null,null,null,null,null,null,null,null,null,null,null,null,null,null,null,null,null,null,null,null,null,null,null,null,null,null,null,null,null,null,null,null,null,null,null,null,null,null,null,null,null,null,null,null,null,null,null,null,null,null,null,null,null,null,null,null,null,null,null,null,null,null,null,null,null,null,null,null,null,null,null,null,null,null,null,null,null,null,null,null,null,null,null,null,null,null,null,null,null,null,null,null,null,null,null,null,null,null,null,null,null,null,null,null,null,null,null,null,null,null,null,null,null,null,null,null,"Утверждаю"]
[null,null,null,null,null,null,null,null,null,null,null,null,null,null,null,null,null,null,null,null,null,null,null,null,null,null,null,null,null,null,null,null,null,null,null,null,null,null,null,null,null,null,null,null,null,null,null,null,null,null,null,null,null,null,null,null,null,null,null,null,null,null,null,null,null,null,null,null,null,null,null,null,null,null,null,null,null,null,null,null,null,null,null,null,null,null,null,null,null,null,null,null,null,null,null,null,null,null,null,null,null,null,null,null,null,null,null,null,null,null,null,null,null,null,null,null,null,null,null,null,null,null,null,null,null,null,"Заведующий МБДОУ ДС \"Карусель\""]
[null,null,null,null,null,null,null,null,null,null,null,null,null,null,null,null,null,null,null,null,null,null,null,null,null,null,null,null,null,null,null,null,null,null,null,null,null,null,null,null,null,null,null,null,null,null,null,null,null,null,null,null,null,null,null,null,null,null,null,null,null,null,null,null,null,null,null,null,null,null,null,null,null,null,null,null,null,null,null,null,null,null,null,null,null,null,null,null,null,null,null,null,null,null,null,null,null,null,null,null,null,null,null,null,null,null,null,null,null,null,null,null,null,null,null,null,null,null,null,null,null,null,null,null,null,null,"(наименование должности уполномоченного лица)"]
[]
[null,null,null,null,null,null,null,null,null,null,null,null,null,null,null,null,null,null,null,null,null,null,null,null,null,null,null,null,null,null,null,null,null,null,null,null,null,null,null,null,null,null,null,null,null,null,null,null,null,null,null,null,null,null,null,null,null,null,null,null,null,null,null,null,null,null,null,null,null,null,null,null,null,null,null,null,null,null,null,null,null,null,null,null,null,null,null,null,null,null,null,null,null,null,null,null,null,null,null,null,null,null,null,null,null,null,null,null,null,null,null,null,null,null,null,null,null,null,null,null,null,null,null,null,null,null,"(наименование органа - учредителя (учреждения)"]
[null,null,null,null,null,null,null,null,null,null,null,null,null,null,null,null,null,null,null,null,null,null,null,null,null,null,null,null,null,null,null,null,null,null,null,null,null,null,null,null,null,null,null,null,null,null,null,null,null,null,null,null,null,null,null,null,null,null,null,null,null,null,null,null,null,null,null,null,null,null,null,null,null,null,null,null,null,null,null,null,null,null,null,null,null,null,null,null,null,null,null,null,null,null,null,null,null,null,null,null,null,null,null,null,null,null,null,null,null,null,null,null,null,null,null,null,null,null,null,null,null,null,null,null,null,null,null,null,null,null,null,null,null,null,null,null,null,null,null,null,null,"А. А. Елизарова"]
[null,null,null,null,null,null,null,null,null,null,null,null,null,null,null,null,null,null,null,null,null,null,null,null,null,null,null,null,null,null,null,null,null,null,null,null,null,null,null,null,null,null,null,null,null,null,null,null,null,null,null,null,null,null,null,null,null,null,null,null,null,null,null,null,null,null,null,null,null,null,null,null,null,null,null,null,null,null,null,null,null,null,null,null,null,null,null,null,null,null,null,null,null,null,null,null,null,null,null,null,null,null,null,null,null,null,null,null,null,null,null,null,null,null,null,null,null,null,null,null,null,null,null,null,null,null,"(подпись)",null,null,null,null,null,null,null,null,null,null,null,null,null,null,"(расшифровка подписи)"]
[null,null,null,null,null,null,null,null,null,null,null,null,null,null,null,null,null,null,null,null,null,null,null,null,null,null,null,null,null,null,null,null,null,null,null,null,null,null,null,null,null,null,null,null,null,null,null,null,null,null,null,null,null,null,null,null,null,null,null,null,null,null,null,null,null,null,null,null,null,null,null,null,null,null,null,null,null,null,null,null,null,null,null,null,null,null,null,null,null,null,null,null,null,null,null,null,null,null,null,null,null,null,null,null,null,null,null,null,null,null,null,null,null,null,null,null,null,null,null,null,null,null,null,null,null,null,"\"",null,"29",null,null,"\"",null,null,"12",null,null,null,null,null,null,null,null,null,null,null,null,null,null,20,null,null,"22",null,null," г."]
[]
[null,null,null,null,null,null,null,null,null,null,null,null,null,null,null,null,null,null,null,null,null,null,null,null,null,null,null,null,null,null,null,null,null,null,null,null,null,null,null,null,null,null,null,null,null,null,null,null,null,null,null,null,null,null,null,null,null,null,null,null,null,null,null,null,null,null,null,null,null,null,null,null,null,null,null,null,null,null,null,null,null,null,null,null,null,null,null,null,null,null,null,null,null,null,null,"План финансово-хозяйственной деятельности на 20","23",null,null," г."]
[null,null,null,null,null,null,null,null,null,null,null,null,null,null,null,null,null,null,null,null,null,null,null,null,null,null,null,null,null,null,null,null,null,null,null,null,null,null,null,null,null,null,null,null,null,null,null,null,null,null,"(на 20",null,null,null,null,null,null,"23",null,null,"г. и плановый период 20",null,null,null,null,null,null,null,null,null,null,null,null,null,null,null,null,null,null,null,null,null,"24",null,null,"и 20",null,null,null,null,"25",null,null," годов 1)",null,null,null,null,null,null,null,null,null,null,null,null,null,null,null,null,null,null,null,null,null,null,null,null,null,null,null,null,null,null,null,null,null,null,null,null,null,null,null,null,null,null,null,null,null,null,null,null,null,null,null,null,null,null,"Коды"]
[]
[null,null,null,null,null,null,null,null,null,null,null,null,null,null,null,null,null,null,null,null,null,null,null,null,null,null,null,null,null,null,null,null,null,null,null,null,null,null,null,null,null,null,null,null,null,null,null,null,null,null,null,null,null,null,null,null,null,null,"от \"",null,null,null,"29",null,null,"\"",null,null,"12",null,null,null,null,null,null,null,null,null,null,null,null,null,null,20,null,null,"22",null,null," г.2",null,null,null,null,null,null,null,null,null,null,null,null,null,null,null,null,null,null,null,null,null,null,null,null,null,null,null,null,null,null,null,null,null,null,null,null,null,null,null,null,null,null,null,null,null,null,null,null,null,null,null,null,null,null,null,null,"Дата"]
["Орган, осуществляющий",null,null,null,null,null,null,null,null,null,null,null,null,null,null,null,null,null,null,null,null,null,null,null,null,null,null,null,null,null,null,null,null,null,null,null,null,null,null,null,null,null,null,null,null,null,null,null,null,null,null,null,null,null,null,null,null,null,null,null,null,null,null,null,null,null,null,null,null,null,null,null,null,null,null,null,null,null,null,null,null,null,null,null,null,null,null,null,null,null,null,null,null,null,null,null,null,null,null,null,null,null,null,null,null,null,null,null,null,null,null,null,null,null,null,null,null,null,null,null,null,null,null,null,null,null,null,null,null,null,null,null,null,null,null,null,null,null,null,null,null,null,null,null,null,null,"по Сводному реестру"]
["функции и полномочия учредителя",null,null,null,null,null,null,null,null,null,null,null,null,null,null,null,null,null,null,null,null,null,null,null,null,null,null,"Администрация Александрово-Гайского муниципального района Саратовской области",null,null,null,null,null,null,null,null,null,null,null,null,null,null,null,null,null,null,null,null,null,null,null,null,null,null,null,null,null,null,null,null,null,null,null,null,null,null,null,null,null,null,null,null,null,null,null,null,null,null,null,null,null,null,null,null,null,null,null,null,null,null,null,null,null,null,null,null,null,null,null,null,null,null,null,null,null,null,null,null,null,null,null,null,null,null,null,null,null,null,null,null,null,null,null,null,null,null,null,null,null,null,null,null,null,null,null,null,null,null,null,null,null,null,null,null,null,null,"глава по БК"]
[null,null,null,null,null,null,null,null,null,null,null,null,null,null,null,null,null,null,null,null,null,null,null,null,null,null,null,null,null,null,null,null,null,null,null,null,null,null,null,null,null,null,null,null,null,null,null,null,null,null,null,null,null,null,null,null,null,null,null,null,null,null,null,null,null,null,null,null,null,null,null,null,null,null,null,null,null,null,null,null,null,null,null,null,null,null,null,null,null,null,null,null,null,null,null,null,null,null,null,null,null,null,null,null,null,null,null,null,null,null,null,null,null,null,null,null,null,null,null,null,null,null,null,null,null,null,null,null,null,null,null,null,null,null,null,null,null,null,null,null,null,null,null,null,null,null,"по Сводному реестру"]
[null,null,null,null,null,null,null,null,null,null,null,null,null,null,null,null,null,null,null,null,null,null,null,null,null,null,null,null,null,null,null,null,null,null,null,null,null,null,null,null,null,null,null,null,null,null,null,null,null,null,null,null,null,null,null,null,null,null,null,null,null,null,null,null,null,null,null,null,null,null,null,null,null,null,null,null,null,null,null,null,null,null,null,null,null,null,null,null,null,null,null,null,null,null,null,null,null,null,null,null,null,null,null,null,null,null,null,null,null,null,null,null,null,null,null,null,null,null,null,null,null,null,null,null,null,null,null,null,null,null,null,null,null,null,null,null,null,null,null,null,null,null,null,null,null,null,"ИНН",null,"6401003271"]
["Учреждение",null,null,null,null,null,null,null,null,null,"Муниципальное бюджетное дошкольное образовательное учреждение детский сад \"Карусель\" с. Александров-Гай",null,null,null,null,null,null,null,null,null,null,null,null,null,null,null,null,null,null,null,null,null,null,null,null,null,null,null,null,null,null,null,null,null,null,null,null,null,null,null,null,null,null,null,null,null,null,null,null,null,null,null,null,null,null,null,null,null,null,null,null,null,null,null,null,null,null,null,null,null,null,null,null,null,null,null,null,null,null,null,null,null,null,null,null,null,null,null,null,null,null,null,null,null,null,null,null,null,null,null,null,null,null,null,null,null,null,null,null,null,null,null,null,null,null,null,null,null,null,null,null,null,null,null,null,null,null,null,null,null,null,null,null,null,null,null,"КПП",null,"640101001"]
["Единица измерения: руб.",null,null,null,null,null,null,null,null,null,null,null,null,null,null,null,null,null,null,null,null,null,null,null,null,null,null,null,null,null,null,null,null,null,null,null,null,null,null,null,null,null,null,null,null,null,null,null,null,null,null,null,null,null,null,null,null,null,null,null,null,null,null,null,null,null,null,null,null,null,null,null,null,null,null,null,null,null,null,null,null,null,null,null,null,null,null,null,null,null,null,null,null,null,null,null,null,null,null,null,null,null,null,null,null,null,null,null,null,null,null,null,null,null,null,null,null,null,null,null,null,null,null,null,null,null,null,null,null,null,null,null,null,null,null,null,null,null,null,null,null,null,null,null,null,null,"по ОКЕИ",null,"383"]
[]
["Раздел 1. Поступления и выплаты"]
[]
["Наименование показателя",null,null,null,null,null,null,null,null,null,null,null,null,null,null,null,null,null,null,null,null,null,null,null,null,null,null,null,null,null,null,null,null,null,null,null,null,null,null,null,null,null,null,null,null,null,null,null,null,null,null,null,null,null,null,null,null,null,null,null,null,null,null,null,null,null,null,null,null,null,null,null,null,null,null,"Код строки",null,null,null,null,null,null,null,"Код по бюджетной классификации Российской Федерации 3",null,null,null,null,null,null,null,null,null,null,null,null,"Аналити-ческий код 4",null,null,null,null,null,null,null,null,null,null,null,null,"Сумма"]
[null,null,null,null,null,null,null,null,null,null,null,null,null,null,null,null,null,null,null,null,null,null,null,null,null,null,null,null,null,null,null,null,null,null,null,null,null,null,null,null,null,null,null,null,null,null,null,null,null,null,null,null,null,null,null,null,null,null,null,null,null,null,null,null,null,null,null,null,null,null,null,null,null,null,null,null,null,null,null,null,null,null,null,null,null,null,null,null,null,null,null,null,null,null,null,null,null,null,null,null,null,null,null,null,null,null,null,null,null,"на 20",null,null,null,null,null,"23",null,null," г.",null,null,null,"на 20",null,null,null,null,null,"24",null,null," г.",null,null,null,"на 20",null,null,null,null,null,"25",null,null," г.",null,null,null,"за пределами планового периода"]
[null,null,null,null,null,null,null,null,null,null,null,null,null,null,null,null,null,null,null,null,null,null,null,null,null,null,null,null,null,null,null,null,null,null,null,null,null,null,null,null,null,null,null,null,null,null,null,null,null,null,null,null,null,null,null,null,null,null,null,null,null,null,null,null,null,null,null,null,null,null,null,null,null,null,null,null,null,null,null,null,null,null,null,null,null,null,null,null,null,null,null,null,null,null,null,null,null,null,null,null,null,null,null,null,null,null,null,null,null,"текущий финансовый год",null,null,null,null,null,null,null,null,null,null,null,null,"первый год планового периода",null,null,null,null,null,null,null,null,null,null,null,null,"второй год планового периода"]
["1",null,null,null,null,null,null,null,null,null,null,null,null,null,null,null,null,null,null,null,null,null,null,null,null,null,null,null,null,null,null,null,null,null,null,null,null,null,null,null,null,null,null,null,null,null,null,null,null,null,null,null,null,null,null,null,null,null,null,null,null,null,null,null,null,null,null,null,null,null,null,null,null,null,null,"2",null,null,null,null,null,null,null,"3",null,null,null,null,null,null,null,null,null,null,null,null,"4",null,null,null,null,null,null,null,null,null,null,null,null,"5",null,null,null,null,null,null,null,null,null,null,null,null,"6",null,null,null,null,null,null,null,null,null,null,null,null,"7",null,null,null,null,null,null,null,null,null,null,null,null,"8"]
["Остаток средств на начало текущего финансового года 5",null,null,null,null,null,null,null,null,null,null,null,null,null,null,null,null,null,null,null,null,null,null,null,null,null,null,null,null,null,null,null,null,null,null,null,null,null,null,null,null,null,null,null,null,null,null,null,null,null,null,null,null,null,null,null,null,null,null,null,null,null,null,null,null,null,null,null,null,null,null,null,null,null,null,"0001",null,null,null,null,null,null,null,"х",null,null,null,null,null,null,null,null,null,null,null,null,"х"]
["Остаток средств на конец текущего финансового года 5",null,null,null,null,null,null,null,null,null,null,null,null,null,null,null,null,null,null,null,null,null,null,null,null,null,null,null,null,null,null,null,null,null,null,null,null,null,null,null,null,null,null,null,null,null,null,null,null,null,null,null,null,null,null,null,null,null,null,null,null,null,null,null,null,null,null,null,null,null,null,null,null,null,null,"0002",null,null,null,null,null,null,null,"х",null,null,null,null,null,null,null,null,null,null,null,null,"х"]
["Доходы, всего:",null,null,null,null,null,null,null,null,null,null,null,null,null,null,null,null,null,null,null,null,null,null,null,null,null,null,null,null,null,null,null,null,null,null,null,null,null,null,null,null,null,null,null,null,null,null,null,null,null,null,null,null,null,null,null,null,null,null,null,null,null,null,null,null,null,null,null,null,null,null,null,null,null,null,"1000",null,null,null,null,null,null,null,null,null,null,null,null,null,null,null,null,null,null,null,null,null,null,null,null,null,null,null,null,null,null,null,null,null,{"$f":"DF34+DF44","v":11272697},null,null,null,null,null,null,null,null,null,null,null,null,{"$f":"DS34+DS44","v":10364482},null,null,null,null,null,null,null,null,null,null,null,null,{"$f":"EF34+EF44","v":10364482}]
["в том числе:\nдоходы от собственности, всего",null,null,null,null,null,null,null,null,null,null,null,null,null,null,null,null,null,null,null,null,null,null,null,null,null,null,null,null,null,null,null,null,null,null,null,null,null,null,null,null,null,null,null,null,null,null,null,null,null,null,null,null,null,null,null,null,null,null,null,null,null,null,null,null,null,null,null,null,null,null,null,null,null,null,"1100",null,null,null,null,null,null,null,"120"]
["в том числе:",null,null,null,null,null,null,null,null,null,null,null,null,null,null,null,null,null,null,null,null,null,null,null,null,null,null,null,null,null,null,null,null,null,null,null,null,null,null,null,null,null,null,null,null,null,null,null,null,null,null,null,null,null,null,null,null,null,null,null,null,null,null,null,null,null,null,null,null,null,null,null,null,null,null,"1110"]
[]
["доходы от оказания услуг, работ, компенсации затрат учреждений, всего",null,null,null,null,null,null,null,null,null,null,null,null,null,null,null,null,null,null,null,null,null,null,null,null,null,null,null,null,null,null,null,null,null,null,null,null,null,null,null,null,null,null,null,null,null,null,null,null,null,null,null,null,null,null,null,null,null,null,null,null,null,null,null,null,null,null,null,null,null,null,null,null,null,null,"1200",null,null,null,null,null,null,null,"130",null,null,null,null,null,null,null,null,null,null,null,null,131,null,null,null,null,null,null,null,null,null,null,null,null,{"$f":"DF35+'Таблица 2.2'!H14","v":11103997},null,null,null,null,null,null,null,null,null,null,null,null,{"$f":"DS35","v":10364482},null,null,null,null,null,null,null,null,null,null,null,null,{"$f":"EF35","v":10364482}]
["в том числе:\nсубсидии на финансовое обеспечение выполнения государственного (муниципального) задания за счет средств бюджета публично-правового образования, создавшего учреждение",null,null,null,null,null,null,null,null,null,null,null,null,null,null,null,null,null,null,null,null,null,null,null,null,null,null,null,null,null,null,null,null,null,null,null,null,null,null,null,null,null,null,null,null,null,null,null,null,null,null,null,null,null,null,null,null,null,null,null,null,null,null,null,null,null,null,null,null,null,null,null,null,null,null,"1210",null,null,null,null,null,null,null,"130",null,null,null,null,null,null,null,null,null,null,null,null,131,null,null,null,null,null,null,null,null,null,null,null,null,{"$f":"'Таблица 2.2'!H18","v":10372472},null,null,null,null,null,null,null,null,null,null,null,null,{"$f":"DS56","v":10364482},null,null,null,null,null,null,null,null,null,null,null,null,{"$f":"EF56","v":10364482}]
["субсидии на финансовое обеспечение выполнения государственного задания за счет средств бюджета Федерального фонда обязательного медицинского страхования",null,null,null,null,null,null,null,null,null,null,null,null,null,null,null,null,null,null,null,null,null,null,null,null,null,null,null,null,null,null,null,null,null,null,null,null,null,null,null,null,null,null,null,null,null,null,null,null,null,null,null,null,null,null,null,null,null,null,null,null,null,null,null,null,null,null,null,null,null,null,null,null,null,null,"1220",null,null,null,null,null,null,null,"130"]
[]
["доходы от штрафов, пеней, иных сумм принудительного изъятия, всего",null,null,null,null,null,null,null,null,null,null,null,null,null,null,null,null,null,null,null,null,null,null,null,null,null,null,null,null,null,null,null,null,null,null,null,null,null,null,null,null,null,null,null,null,null,null,null,null,null,null,null,null,null,null,null,null,null,null,null,null,null,null,null,null,null,null,null,null,null,null,null,null,null,null,"1300",null,null,null,null,null,null,null,"140"]
["в том числе:",null,null,null,null,null,null,null,null,null,null,null,null,null,null,null,null,null,null,null,null,null,null,null,null,null,null,null,null,null,null,null,null,null,null,null,null,null,null,null,null,null,null,null,null,null,null,null,null,null,null,null,null,null,null,null,null,null,null,null,null,null,null,null,null,null,null,null,null,null,null,null,null,null,null,"1310",null,null,null,null,null,null,null,"140"]
[]
["безвозмездные денежные поступления, всего",null,null,null,null,null,null,null,null,null,null,null,null,null,null,null,null,null,null,null,null,null,null,null,null,null,null,null,null,null,null,null,null,null,null,null,null,null,null,null,null,null,null,null,null,null,null,null,null,null,null,null,null,null,null,null,null,null,null,null,null,null,null,null,null,null,null,null,null,null,null,null,null,null,null,"1400",null,null,null,null,null,null,null,"150"]
["в том числе:"]
[]
["прочие доходы, всего",null,null,null,null,null,null,null,null,null,null,null,null,null,null,null,null,null,null,null,null,null,null,null,null,null,null,null,null,null,null,null,null,null,null,null,null,null,null,null,null,null,null,null,null,null,null,null,null,null,null,null,null,null,null,null,null,null,null,null,null,null,null,null,null,null,null,null,null,null,null,null,null,null,null,"1500",null,null,null,null,null,null,null,"180",null,null,null,null,null,null,null,null,null,null,null,null,180,null,null,null,null,null,null,null,null,null,null,null,null,{"$f":"'Таблица 2.2'!H94","v":168700},null,null,null,null,null,null,null,null,null,null,null,null,0,null,null,null,null,null,null,null,null,null,null,null,null,0]
["в том числе:",null,null,null,null,null,null,null,null,null,null,null,null,null,null,null,null,null,null,null,null,null,null,null,null,null,null,null,null,null,null,null,null,null,null,null,null,null,null,null,null,null,null,null,null,null,null,null,null,null,null,null,null,null,null,null,null,null,null,null,null,null,null,null,null,null,null,null,null,null,null,null,null,null,null,"1510",null,null,null,null,null,null,null,"180"]
["целевые субсидии"]
["субсидии на осуществление капитальных вложений",null,null,null,null,null,null,null,null,null,null,null,null,null,null,null,null,null,null,null,null,null,null,null,null,null,null,null,null,null,null,null,null,null,null,null,null,null,null,null,null,null,null,null,null,null,null,null,null,null,null,null,null,null,null,null,null,null,null,null,null,null,null,null,null,null,null,null,null,null,null,null,null,null,null,"1520",null,null,null,null,null,null,null,"180"]
[]
["доходы от операций с активами, всего",null,null,null,null,null,null,null,null,null,null,null,null,null,null,null,null,null,null,null,null,null,null,null,null,null,null,null,null,null,null,null,null,null,null,null,null,null,null,null,null,null,null,null,null,null,null,null,null,null,null,null,null,null,null,null,null,null,null,null,null,null,null,null,null,null,null,null,null,null,null,null,null,null,null,"1900"]
["в том числе:"]
[]
[]
["прочие поступления, всего 6",null,null,null,null,null,null,null,null,null,null,null,null,null,null,null,null,null,null,null,null,null,null,null,null,null,null,null,null,null,null,null,null,null,null,null,null,null,null,null,null,null,null,null,null,null,null,null,null,null,null,null,null,null,null,null,null,null,null,null,null,null,null,null,null,null,null,null,null,null,null,null,null,null,null,"1980",null,null,null,null,null,null,null,"х"]
["из них:\nувеличение остатков денежных средств за счет возврата дебиторской задолженности прошлых лет",null,null,null,null,null,null,null,null,null,null,null,null,null,null,null,null,null,null,null,null,null,null,null,null,null,null,null,null,null,null,null,null,null,null,null,null,null,null,null,null,null,null,null,null,null,null,null,null,null,null,null,null,null,null,null,null,null,null,null,null,null,null,null,null,null,null,null,null,null,null,null,null,null,null,"1981",null,null,null,null,null,null,null,"510",null,null,null,null,null,null,null,null,null,null,null,null,null,null,null,null,null,null,null,null,null,null,null,null,null,null,null,null,null,null,null,null,null,null,null,null,null,null,null,null,null,null,null,null,null,null,null,null,null,null,null,null,null,null,null,null,null,null,null,null,null,null,null,null,"х"]
[]
["Расходы, всего",null,null,null,null,null,null,null,null,null,null,null,null,null,null,null,null,null,null,null,null,null,null,null,null,null,null,null,null,null,null,null,null,null,null,null,null,null,null,null,null,null,null,null,null,null,null,null,null,null,null,null,null,null,null,null,null,null,null,null,null,null,null,null,null,null,null,null,null,null,null,null,null,null,null,"2000",null,null,null,null,null,null,null,"х",null,null,null,null,null,null,null,null,null,null,null,null,null,null,null,null,null,null,null,null,null,null,null,null,null,{"$f":"DF58+DF61+DF76+DF90+DF89+DF103","v":11272697},null,null,null,null,null,null,null,null,null,null,null,null,{"$f":"DS58+DS61+DS76+DS90+DS89+DS103","v":10364482},null,null,null,null,null,null,null,null,null,null,null,null,{"$f":"EF58+EF61+EF76+EF90+EF89+EF103","v":10364482}]
["в том числе:\nна выплаты персоналу, всего",null,null,null,null,null,null,null,null,null,null,null,null,null,null,null,null,null,null,null,null,null,null,null,null,null,null,null,null,null,null,null,null,null,null,null,null,null,null,null,null,null,null,null,null,null,null,null,null,null,null,null,null,null,null,null,null,null,null,null,null,null,null,null,null,null,null,null,null,null,null,null,null,null,null,"2100",null,null,null,null,null,null,null,"х",null,null,null,null,null,null,null,null,null,null,null,null,null,null,null,null,null,null,null,null,null,null,null,null,null,{"$f":"DF58+DF61","v":9545897},null,null,null,null,null,null,null,null,null,null,null,null,{"$f":"DS58+DS61","v":9535897},null,null,null,null,null,null,null,null,null,null,null,null,{"$f":"EF58+EF61","v":9535897},null,null,null,null,null,null,null,null,null,null,null,null,"х"]
["в том числе:\nоплата труда",null,null,null,null,null,null,null,null,null,null,null,null,null,null,null,null,null,null,null,null,null,null,null,null,null,null,null,null,null,null,null,null,null,null,null,null,null,null,null,null,null,null,null,null,null,null,null,null,null,null,null,null,null,null,null,null,null,null,null,null,null,null,null,null,null,null,null,null,null,null,null,null,null,null,"2110",null,null,null,null,null,null,null,"111",null,null,null,null,null,null,null,null,null,null,null,null,211,null,null,null,null,null,null,null,null,null,null,null,null,{"$f":"'Таблица 2.2'!H96+'Таблица 2.2'!H98+'Таблица 2.2'!H22+'Таблица 2.2'!H23+'Таблица 2.2'!H24+'Таблица 2.2'!H25+'Таблица 2.2'!H108","v":7331717},null,null,null,null,null,null,null,null,null,null,null,null,{"$f":"7331717-10000","v":7321717},null,null,null,null,null,null,null,null,null,null,null,null,{"$f":"7331717-10000","v":7321717},null,null,null,null,null,null,null,null,null,null,null,null,"х"]
["прочие выплаты персоналу, в том числе компенсационного характера",null,null,null,null,null,null,null,null,null,null,null,null,null,null,null,null,null,null,null,null,null,null,null,null,null,null,null,null,null,null,null,null,null,null,null,null,null,null,null,null,null,null,null,null,null,null,null,null,null,null,null,null,null,null,null,null,null,null,null,null,null,null,null,null,null,null,null,null,null,null,null,null,null,null,"2120",null,null,null,null,null,null,null,"112",null,null,null,null,null,null,null,null,null,null,null,null,null,null,null,null,null,null,null,null,null,null,null,null,null,null,null,null,null,null,null,null,null,null,null,null,null,null,null,null,null,null,null,null,null,null,null,null,null,null,null,null,null,null,null,null,null,null,null,null,null,null,null,null,"х"]
["иные выплаты, за исключением фонда оплаты труда учреждения, для выполнения отдельных полномочий",null,null,null,null,null,null,null,null,null,null,null,null,null,null,null,null,null,null,null,null,null,null,null,null,null,null,null,null,null,null,null,null,null,null,null,null,null,null,null,null,null,null,null,null,null,null,null,null,null,null,null,null,null,null,null,null,null,null,null,null,null,null,null,null,null,null,null,null,null,null,null,null,null,null,"2130",null,null,null,null,null,null,null,"113",null,null,null,null,null,null,null,null,null,null,null,null,null,null,null,null,null,null,null,null,null,null,null,null,null,null,null,null,null,null,null,null,null,null,null,null,null,null,null,null,null,null,null,null,null,null,null,null,null,null,null,null,null,null,null,null,null,null,null,null,null,null,null,null,"х"]
["взносы по обязательному социальному страхованию на выплаты по оплате труда работников и иные выплаты работникам учреждений, всего",null,null,null,null,null,null,null,null,null,null,null,null,null,null,null,null,null,null,null,null,null,null,null,null,null,null,null,null,null,null,null,null,null,null,null,null,null,null,null,null,null,null,null,null,null,null,null,null,null,null,null,null,null,null,null,null,null,null,null,null,null,null,null,null,null,null,null,null,null,null,null,null,null,null,"2140",null,null,null,null,null,null,null,"119",null,null,null,null,null,null,null,null,null,null,null,null,213,null,null,null,null,null,null,null,null,null,null,null,null,{"$f":"'Таблица 2.2'!H28+'Таблица 2.2'!H30+'Таблица 2.2'!H97+'Таблица 2.2'!H99+'Таблица 2.2'!H109+'Таблица 2.2'!H116","v":2214180},null,null,null,null,null,null,null,null,null,null,null,null,2214180,null,null,null,null,null,null,null,null,null,null,null,null,2214180,null,null,null,null,null,null,null,null,null,null,null,null,"х"]
["в том числе:\nна выплаты по оплате труда",null,null,null,null,null,null,null,null,null,null,null,null,null,null,null,null,null,null,null,null,null,null,null,null,null,null,null,null,null,null,null,null,null,null,null,null,null,null,null,null,null,null,null,null,null,null,null,null,null,null,null,null,null,null,null,null,null,null,null,null,null,null,null,null,null,null,null,null,null,null,null,null,null,null,"2141",null,null,null,null,null,null,null,"119",null,null,null,null,null,null,null,null,null,null,null,null,null,null,null,null,null,null,null,null,null,null,null,null,null,null,null,null,null,null,null,null,null,null,null,null,null,null,null,null,null,null,null,null,null,null,null,null,null,null,null,null,null,null,null,null,null,null,null,null,null,null,null,null,"х"]
["на иные выплаты работникам",null,null,null,null,null,null,null,null,null,null,null,null,null,null,null,null,null,null,null,null,null,null,null,null,null,null,null,null,null,null,null,null,null,null,null,null,null,null,null,null,null,null,null,null,null,null,null,null,null,null,null,null,null,null,null,null,null,null,null,null,null,null,null,null,null,null,null,null,null,null,null,null,null,null,"2142",null,null,null,null,null,null,null,"119",null,null,null,null,null,null,null,null,null,null,null,null,null,null,null,null,null,null,null,null,null,null,null,null,null,null,null,null,null,null,null,null,null,null,null,null,null,null,null,null,null,null,null,null,null,null,null,null,null,null,null,null,null,null,null,null,null,null,null,null,null,null,null,null,"х"]
["денежное довольствие военнослужащих и сотрудников, имеющих специальные звания",null,null,null,null,null,null,null,null,null,null,null,null,null,null,null,null,null,null,null,null,null,null,null,null,null,null,null,null,null,null,null,null,null,null,null,null,null,null,null,null,null,null,null,null,null,null,null,null,null,null,null,null,null,null,null,null,null,null,null,null,null,null,null,null,null,null,null,null,null,null,null,null,null,null,"2150",null,null,null,null,null,null,null,"131",null,null,null,null,null,null,null,null,null,null,null,null,null,null,null,null,null,null,null,null,null,null,null,null,null,null,null,null,null,null,null,null,null,null,null,null,null,null,null,null,null,null,null,null,null,null,null,null,null,null,null,null,null,null,null,null,null,null,null,null,null,null,null,null,"х"]
["иные выплаты военнослужащим и сотрудникам, имеющим специальные звания",null,null,null,null,null,null,null,null,null,null,null,null,null,null,null,null,null,null,null,null,null,null,null,null,null,null,null,null,null,null,null,null,null,null,null,null,null,null,null,null,null,null,null,null,null,null,null,null,null,null,null,null,null,null,null,null,null,null,null,null,null,null,null,null,null,null,null,null,null,null,null,null,null,null,"2160",null,null,null,null,null,null,null,"134",null,null,null,null,null,null,null,null,null,null,null,null,null,null,null,null,null,null,null,null,null,null,null,null,null,null,null,null,null,null,null,null,null,null,null,null,null,null,null,null,null,null,null,null,null,null,null,null,null,null,null,null,null,null,null,null,null,null,null,null,null,null,null,null,"х"]
["страховые взносы на обязательное социальное страхование в части выплат персоналу, подлежащих обложению страховыми взносами",null,null,null,null,null,null,null,null,null,null,null,null,null,null,null,null,null,null,null,null,null,null,null,null,null,null,null,null,null,null,null,null,null,null,null,null,null,null,null,null,null,null,null,null,null,null,null,null,null,null,null,null,null,null,null,null,null,null,null,null,null,null,null,null,null,null,null,null,null,null,null,null,null,null,"2170",null,null,null,null,null,null,null,"139",null,null,null,null,null,null,null,null,null,null,null,null,null,null,null,null,null,null,null,null,null,null,null,null,null,null,null,null,null,null,null,null,null,null,null,null,null,null,null,null,null,null,null,null,null,null,null,null,null,null,null,null,null,null,null,null,null,null,null,null,null,null,null,null,"х"]
["в том числе:\nна оплату труда стажеров",null,null,null,null,null,null,null,null,null,null,null,null,null,null,null,null,null,null,null,null,null,null,null,null,null,null,null,null,null,null,null,null,null,null,null,null,null,null,null,null,null,null,null,null,null,null,null,null,null,null,null,null,null,null,null,null,null,null,null,null,null,null,null,null,null,null,null,null,null,null,null,null,null,null,"2171",null,null,null,null,null,null,null,"139",null,null,null,null,null,null,null,null,null,null,null,null,null,null,null,null,null,null,null,null,null,null,null,null,null,null,null,null,null,null,null,null,null,null,null,null,null,null,null,null,null,null,null,null,null,null,null,null,null,null,null,null,null,null,null,null,null,null,null,null,null,null,null,null,"х"]
["на иные выплаты гражданским лицам (денежное содержание)",null,null,null,null,null,null,null,null,null,null,null,null,null,null,null,null,null,null,null,null,null,null,null,null,null,null,null,null,null,null,null,null,null,null,null,null,null,null,null,null,null,null,null,null,null,null,null,null,null,null,null,null,null,null,null,null,null,null,null,null,null,null,null,null,null,null,null,null,null,null,null,null,null,null,"2172",null,null,null,null,null,null,null,"139",null,null,null,null,null,null,null,null,null,null,null,null,null,null,null,null,null,null,null,null,null,null,null,null,null,null,null,null,null,null,null,null,null,null,null,null,null,null,null,null,null,null,null,null,null,null,null,null,null,null,null,null,null,null,null,null,null,null,null,null,null,null,null,null,"х"]
["социальные и иные выплаты населению, всего",null,null,null,null,null,null,null,null,null,null,null,null,null,null,null,null,null,null,null,null,null,null,null,null,null,null,null,null,null,null,null,null,null,null,null,null,null,null,null,null,null,null,null,null,null,null,null,null,null,null,null,null,null,null,null,null,null,null,null,null,null,null,null,null,null,null,null,null,null,null,null,null,null,null,"2200",null,null,null,null,null,null,null,"300",null,null,null,null,null,null,null,null,null,null,null,null,null,null,null,null,null,null,null,null,null,null,null,null,null,null,null,null,null,null,null,null,null,null,null,null,null,null,null,null,null,null,null,null,null,null,null,null,null,null,null,null,null,null,null,null,null,null,null,null,null,null,null,null,"х"]
["в том числе:\nсоциальные выплаты гражданам, кроме публичных нормативных социальных выплат",null,null,null,null,null,null,null,null,null,null,null,null,null,null,null,null,null,null,null,null,null,null,null,null,null,null,null,null,null,null,null,null,null,null,null,null,null,null,null,null,null,null,null,null,null,null,null,null,null,null,null,null,null,null,null,null,null,null,null,null,null,null,null,null,null,null,null,null,null,null,null,null,null,null,"2210",null,null,null,null,null,null,null,"320",null,null,null,null,null,null,null,null,null,null,null,null,null,null,null,null,null,null,null,null,null,null,null,null,null,null,null,null,null,null,null,null,null,null,null,null,null,null,null,null,null,null,null,null,null,null,null,null,null,null,null,null,null,null,null,null,null,null,null,null,null,null,null,null,"х"]
["из них:\nпособия, компенсации и иные социальные выплаты гражданам, кроме публичных нормативных обязательств",null,null,null,null,null,null,null,null,null,null,null,null,null,null,null,null,null,null,null,null,null,null,null,null,null,null,null,null,null,null,null,null,null,null,null,null,null,null,null,null,null,null,null,null,null,null,null,null,null,null,null,null,null,null,null,null,null,null,null,null,null,null,null,null,null,null,null,null,null,null,null,null,null,null,"2211",null,null,null,null,null,null,null,"321",null,null,null,null,null,null,null,null,null,null,null,null,null,null,null,null,null,null,null,null,null,null,null,null,null,null,null,null,null,null,null,null,null,null,null,null,null,null,null,null,null,null,null,null,null,null,null,null,null,null,null,null,null,null,null,null,null,null,null,null,null,null,null,null,"х"]
[]
["выплата стипендий, осуществление иных расходов на социальную поддержку обучающихся за счет средств стипендиального фонда",null,null,null,null,null,null,null,null,null,null,null,null,null,null,null,null,null,null,null,null,null,null,null,null,null,null,null,null,null,null,null,null,null,null,null,null,null,null,null,null,null,null,null,null,null,null,null,null,null,null,null,null,null,null,null,null,null,null,null,null,null,null,null,null,null,null,null,null,null,null,null,null,null,null,"2220",null,null,null,null,null,null,null,"340",null,null,null,null,null,null,null,null,null,null,null,null,null,null,null,null,null,null,null,null,null,null,null,null,null,null,null,null,null,null,null,null,null,null,null,null,null,null,null,null,null,null,null,null,null,null,null,null,null,null,null,null,null,null,null,null,null,null,null,null,null,null,null,null,"х"]
["на премирование физических лиц за достижения в области культуры, искусства, образования, науки и техники, а также на предоставление грантов с целью поддержки проектов в области науки, культуры и искусства",null,null,null,null,null,null,null,null,null,null,null,null,null,null,null,null,null,null,null,null,null,null,null,null,null,null,null,null,null,null,null,null,null,null,null,null,null,null,null,null,null,null,null,null,null,null,null,null,null,null,null,null,null,null,null,null,null,null,null,null,null,null,null,null,null,null,null,null,null,null,null,null,null,null,"2230",null,null,null,null,null,null,null,"350",null,null,null,null,null,null,null,null,null,null,null,null,null,null,null,null,null,null,null,null,null,null,null,null,null,null,null,null,null,null,null,null,null,null,null,null,null,null,null,null,null,null,null,null,null,null,null,null,null,null,null,null,null,null,null,null,null,null,null,null,null,null,null,null,"х"]
["социальное обеспечение детей-сирот и детей, оставшихся без попечения родителей",null,null,null,null,null,null,null,null,null,null,null,null,null,null,null,null,null,null,null,null,null,null,null,null,null,null,null,null,null,null,null,null,null,null,null,null,null,null,null,null,null,null,null,null,null,null,null,null,null,null,null,null,null,null,null,null,null,null,null,null,null,null,null,null,null,null,null,null,null,null,null,null,null,null,"2240",null,null,null,null,null,null,null,"360",null,null,null,null,null,null,null,null,null,null,null,null,null,null,null,null,null,null,null,null,null,null,null,null,null,null,null,null,null,null,null,null,null,null,null,null,null,null,null,null,null,null,null,null,null,null,null,null,null,null,null,null,null,null,null,null,null,null,null,null,null,null,null,null,"х"]
["уплата налогов, сборов и иных платежей, всего",null,null,null,null,null,null,null,null,null,null,null,null,null,null,null,null,null,null,null,null,null,null,null,null,null,null,null,null,null,null,null,null,null,null,null,null,null,null,null,null,null,null,null,null,null,null,null,null,null,null,null,null,null,null,null,null,null,null,null,null,null,null,null,null,null,null,null,null,null,null,null,null,null,null,"2300",null,null,null,null,null,null,null,"850",null,null,null,null,null,null,null,null,null,null,null,null,null,null,null,null,null,null,null,null,null,null,null,null,null,{"$f":"DF77+DF79+DF78+DF85","v":212450},null,null,null,null,null,null,null,null,null,null,null,null,{"$f":"DS77+DS79","v":212450},null,null,null,null,null,null,null,null,null,null,null,null,{"$f":"EF77+EF79","v":212450},null,null,null,null,null,null,null,null,null,null,null,null,"х"]
["из них:\nналог на имущество организаций и земельный налог",null,null,null,null,null,null,null,null,null,null,null,null,null,null,null,null,null,null,null,null,null,null,null,null,null,null,null,null,null,null,null,null,null,null,null,null,null,null,null,null,null,null,null,null,null,null,null,null,null,null,null,null,null,null,null,null,null,null,null,null,null,null,null,null,null,null,null,null,null,null,null,null,null,null,"2310",null,null,null,null,null,null,null,"851",null,null,null,null,null,null,null,null,null,null,null,null,291.29399999999998,null,null,null,null,null,null,null,null,null,null,null,null,{"$f":"'Таблица 2.2'!H56+'Таблица 2.2'!H63+'Таблица 2.2'!H61","v":207450},null,null,null,null,null,null,null,null,null,null,null,null,207450,null,null,null,null,null,null,null,null,null,null,null,null,207450,null,null,null,null,null,null,null,null,null,null,null,null,"х"]
["иные налоги (включаемые в состав расходов) в бюджеты бюджетной системы Российской Федерации, а также государственная пошлина",null,null,null,null,null,null,null,null,null,null,null,null,null,null,null,null,null,null,null,null,null,null,null,null,null,null,null,null,null,null,null,null,null,null,null,null,null,null,null,null,null,null,null,null,null,null,null,null,null,null,null,null,null,null,null,null,null,null,null,null,null,null,null,null,null,null,null,null,null,null,null,null,null,null,"2320",null,null,null,null,null,null,null,"852",null,null,null,null,null,null,null,null,null,null,null,null,291,null,null,null,null,null,null,null,null,null,null,null,null,{"$f":"'Таблица 2.2'!H58","v":0},null,null,null,null,null,null,null,null,null,null,null,null,{"$f":"'Таблица 2.2'!U58","v":0},null,null,null,null,null,null,null,null,null,null,null,null,{"$f":"'Таблица 2.2'!AH58","v":0},null,null,null,null,null,null,null,null,null,null,null,null,"х"]
["уплата штрафов (в том числе административных), пеней, иных платежей",null,null,null,null,null,null,null,null,null,null,null,null,null,null,null,null,null,null,null,null,null,null,null,null,null,null,null,null,null,null,null,null,null,null,null,null,null,null,null,null,null,null,null,null,null,null,null,null,null,null,null,null,null,null,null,null,null,null,null,null,null,null,null,null,null,null,null,null,null,null,null,null,null,null,"2330",null,null,null,null,null,null,null,"853",null,null,null,null,null,null,null,null,null,null,null,null,"293, 297",null,null,null,null,null,null,null,null,null,null,null,null,{"$f":"'Таблица 2.2'!H59+'Таблица 2.2'!H125+'Таблица 2.2'!H60","v":5000},null,null,null,null,null,null,null,null,null,null,null,null,5000,null,null,null,null,null,null,null,null,null,null,null,null,5000,null,null,null,null,null,null,null,null,null,null,null,null,"х"]
["безвозмездные перечисления организациям и физическим лицам, всего",null,null,null,null,null,null,null,null,null,null,null,null,null,null,null,null,null,null,null,null,null,null,null,null,null,null,null,null,null,null,null,null,null,null,null,null,null,null,null,null,null,null,null,null,null,null,null,null,null,null,null,null,null,null,null,null,null,null,null,null,null,null,null,null,null,null,null,null,null,null,null,null,null,null,"2400",null,null,null,null,null,null,null,"х",null,null,null,null,null,null,null,null,null,null,null,null,null,null,null,null,null,null,null,null,null,null,null,null,null,null,null,null,null,null,null,null,null,null,null,null,null,null,null,null,null,null,null,null,null,null,null,null,null,null,null,null,null,null,null,null,null,null,null,null,null,null,null,null,"х"]
["из них:\nгранты, предоставляемые другим организациям и физическим лицам",null,null,null,null,null,null,null,null,null,null,null,null,null,null,null,null,null,null,null,null,null,null,null,null,null,null,null,null,null,null,null,null,null,null,null,null,null,null,null,null,null,null,null,null,null,null,null,null,null,null,null,null,null,null,null,null,null,null,null,null,null,null,null,null,null,null,null,null,null,null,null,null,null,null,"2410",null,null,null,null,null,null,null,"810",null,null,null,null,null,null,null,null,null,null,null,null,null,null,null,null,null,null,null,null,null,null,null,null,null,null,null,null,null,null,null,null,null,null,null,null,null,null,null,null,null,null,null,null,null,null,null,null,null,null,null,null,null,null,null,null,null,null,null,null,null,null,null,null,"х"]
["взносы в международные организации",null,null,null,null,null,null,null,null,null,null,null,null,null,null,null,null,null,null,null,null,null,null,null,null,null,null,null,null,null,null,null,null,null,null,null,null,null,null,null,null,null,null,null,null,null,null,null,null,null,null,null,null,null,null,null,null,null,null,null,null,null,null,null,null,null,null,null,null,null,null,null,null,null,null,"2420",null,null,null,null,null,null,null,"862",null,null,null,null,null,null,null,null,null,null,null,null,null,null,null,null,null,null,null,null,null,null,null,null,null,null,null,null,null,null,null,null,null,null,null,null,null,null,null,null,null,null,null,null,null,null,null,null,null,null,null,null,null,null,null,null,null,null,null,null,null,null,null,null,"х"]
["платежи в целях обеспечения реализации соглашений с правительствами иностранных государств и международными организациями",null,null,null,null,null,null,null,null,null,null,null,null,null,null,null,null,null,null,null,null,null,null,null,null,null,null,null,null,null,null,null,null,null,null,null,null,null,null,null,null,null,null,null,null,null,null,null,null,null,null,null,null,null,null,null,null,null,null,null,null,null,null,null,null,null,null,null,null,null,null,null,null,null,null,"2430",null,null,null,null,null,null,null,"863",null,null,null,null,null,null,null,null,null,null,null,null,null,null,null,null,null,null,null,null,null,null,null,null,null,null,null,null,null,null,null,null,null,null,null,null,null,null,null,null,null,null,null,null,null,null,null,null,null,null,null,null,null,null,null,null,null,null,null,null,null,null,null,null,"х"]
["прочие выплаты (кроме выплат на закупку товаров, работ, услуг)",null,null,null,null,null,null,null,null,null,null,null,null,null,null,null,null,null,null,null,null,null,null,null,null,null,null,null,null,null,null,null,null,null,null,null,null,null,null,null,null,null,null,null,null,null,null,null,null,null,null,null,null,null,null,null,null,null,null,null,null,null,null,null,null,null,null,null,null,null,null,null,null,null,null,"2500",null,null,null,null,null,null,null,"х",null,null,null,null,null,null,null,null,null,null,null,null,null,null,null,null,null,null,null,null,null,null,null,null,null,null,null,null,null,null,null,null,null,null,null,null,null,null,null,null,null,null,null,null,null,null,null,null,null,null,null,null,null,null,null,null,null,null,null,null,null,null,null,null,"х"]
["исполнение судебных актов Российской Федерации и мировых соглашений по возмещению вреда, причиненного в результате деятельности учреждения",null,null,null,null,null,null,null,null,null,null,null,null,null,null,null,null,null,null,null,null,null,null,null,null,null,null,null,null,null,null,null,null,null,null,null,null,null,null,null,null,null,null,null,null,null,null,null,null,null,null,null,null,null,null,null,null,null,null,null,null,null,null,null,null,null,null,null,null,null,null,null,null,null,null,"2520",null,null,null,null,null,null,null,"831",null,null,null,null,null,null,null,null,null,null,null,null,297,null,null,null,null,null,null,null,null,null,null,null,null,{"$f":"'Таблица 2.2'!H62+'Таблица 2.2'!H55","v":0},null,null,null,null,null,null,null,null,null,null,null,null,null,null,null,null,null,null,null,null,null,null,null,null,null,null,null,null,null,null,null,null,null,null,null,null,null,null,"х"]
["расходы на закупку товаров, работ, услуг, всего 7",null,null,null,null,null,null,null,null,null,null,null,null,null,null,null,null,null,null,null,null,null,null,null,null,null,null,null,null,null,null,null,null,null,null,null,null,null,null,null,null,null,null,null,null,null,null,null,null,null,null,null,null,null,null,null,null,null,null,null,null,null,null,null,null,null,null,null,null,null,null,null,null,null,null,"2600",null,null,null,null,null,null,null,"х",null,null,null,null,null,null,null,null,null,null,null,null,null,null,null,null,null,null,null,null,null,null,null,null,null,{"$f":"DF89+DF90+DF103","v":1514350},null,null,null,null,null,null,null,null,null,null,null,null,{"$f":"DS89+DS90+DS103","v":616135},null,null,null,null,null,null,null,null,null,null,null,null,{"$f":"EF89+EF90+EF103","v":616135}]
["в том числе:\nзакупку научно-исследовательских и опытно-конструкторских работ",null,null,null,null,null,null,null,null,null,null,null,null,null,null,null,null,null,null,null,null,null,null,null,null,null,null,null,null,null,null,null,null,null,null,null,null,null,null,null,null,null,null,null,null,null,null,null,null,null,null,null,null,null,null,null,null,null,null,null,null,null,null,null,null,null,null,null,null,null,null,null,null,null,null,"2610",null,null,null,null,null,null,null,"241"]
["закупку товаров, работ, услуг в сфере информационно-коммуникационных технологий",null,null,null,null,null,null,null,null,null,null,null,null,null,null,null,null,null,null,null,null,null,null,null,null,null,null,null,null,null,null,null,null,null,null,null,null,null,null,null,null,null,null,null,null,null,null,null,null,null,null,null,null,null,null,null,null,null,null,null,null,null,null,null,null,null,null,null,null,null,null,null,null,null,null,"2620",null,null,null,null,null,null,null,"242"]
["закупку товаров, работ, услуг в целях капитального ремонта государственного (муниципального) имущества",null,null,null,null,null,null,null,null,null,null,null,null,null,null,null,null,null,null,null,null,null,null,null,null,null,null,null,null,null,null,null,null,null,null,null,null,null,null,null,null,null,null,null,null,null,null,null,null,null,null,null,null,null,null,null,null,null,null,null,null,null,null,null,null,null,null,null,null,null,null,null,null,null,null,"2630",null,null,null,null,null,null,null,"243",null,null,null,null,null,null,null,null,null,null,null,null,225,null,null,null,null,null,null,null,null,null,null,null,null,{"$f":"'Таблица 2.2'!H130+'Таблица 2.2'!H131","v":0}]
["прочую закупку товаров, работ и услуг, всего",null,null,null,null,null,null,null,null,null,null,null,null,null,null,null,null,null,null,null,null,null,null,null,null,null,null,null,null,null,null,null,null,null,null,null,null,null,null,null,null,null,null,null,null,null,null,null,null,null,null,null,null,null,null,null,null,null,null,null,null,null,null,null,null,null,null,null,null,null,null,null,null,null,null,"2640",null,null,null,null,null,null,null,"244",null,null,null,null,null,null,null,null,null,null,null,null,null,null,null,null,null,null,null,null,null,null,null,null,null,{"$f":"SUM(DF91:DR101)","v":1139350},null,null,null,null,null,null,null,null,null,null,null,null,{"$f":"SUM(DS91:EE101)","v":216135},null,null,null,null,null,null,null,null,null,null,null,null,{"$f":"SUM(EF91:ER101)","v":216135}]
["из них:"]
["услуги связи",null,null,null,null,null,null,null,null,null,null,null,null,null,null,null,null,null,null,null,null,null,null,null,null,null,null,null,null,null,null,null,null,null,null,null,null,null,null,null,null,null,null,null,null,null,null,null,null,null,null,null,null,null,null,null,null,null,null,null,null,null,null,null,null,null,null,null,null,null,null,null,null,null,null,null,null,null,null,null,null,null,null,"244",null,null,null,null,null,null,null,null,null,null,null,null,"221",null,null,null,null,null,null,null,null,null,null,null,null,{"$f":"'Таблица 2.2'!H33+'Таблица 2.2'!H117","v":10000},null,null,null,null,null,null,null,null,null,null,null,null,5000,null,null,null,null,null,null,null,null,null,null,null,null,5000]
["коммунальные услуги",null,null,null,null,null,null,null,null,null,null,null,null,null,null,null,null,null,null,null,null,null,null,null,null,null,null,null,null,null,null,null,null,null,null,null,null,null,null,null,null,null,null,null,null,null,null,null,null,null,null,null,null,null,null,null,null,null,null,null,null,null,null,null,null,null,null,null,null,null,null,null,null,null,null,null,null,null,null,null,null,null,null,"244",null,null,null,null,null,null,null,null,null,null,null,null,"223",null,null,null,null,null,null,null,null,null,null,null,null,{"$f":"'Таблица 2.2'!H36+'Таблица 2.2'!H120","v":25000}]
["работы,услуги по содержанию имущества",null,null,null,null,null,null,null,null,null,null,null,null,null,null,null,null,null,null,null,null,null,null,null,null,null,null,null,null,null,null,null,null,null,null,null,null,null,null,null,null,null,null,null,null,null,null,null,null,null,null,null,null,null,null,null,null,null,null,null,null,null,null,null,null,null,null,null,null,null,null,null,null,null,null,null,null,null,null,null,null,null,null,"244",null,null,null,null,null,null,null,null,null,null,null,null,"225",null,null,null,null,null,null,null,null,null,null,null,null,{"$f":"'Таблица 2.2'!H38+'Таблица 2.2'!H121+'Таблица 2.2'!H106+'Таблица 2.2'!H100","v":5000},null,null,null,null,null,null,null,null,null,null,null,null,5000,null,null,null,null,null,null,null,null,null,null,null,null,5000]
["прочие работы,услуги",null,null,null,null,null,null,null,null,null,null,null,null,null,null,null,null,null,null,null,null,null,null,null,null,null,null,null,null,null,null,null,null,null,null,null,null,null,null,null,null,null,null,null,null,null,null,null,null,null,null,null,null,null,null,null,null,null,null,null,null,null,null,null,null,null,null,null,null,null,null,null,null,null,null,null,null,null,null,null,null,null,null,"244",null,null,null,null,null,null,null,null,null,null,null,null,"226",null,null,null,null,null,null,null,null,null,null,null,null,{"$f":"'Таблица 2.2'!H39+'Таблица 2.2'!H134+'Таблица 2.2'!H105+'Таблица 2.2'!H101","v":5000},null,null,null,null,null,null,null,null,null,null,null,null,5000,null,null,null,null,null,null,null,null,null,null,null,null,5000]
["увеличение стоимости материальных запасов",null,null,null,null,null,null,null,null,null,null,null,null,null,null,null,null,null,null,null,null,null,null,null,null,null,null,null,null,null,null,null,null,null,null,null,null,null,null,null,null,null,null,null,null,null,null,null,null,null,null,null,null,null,null,null,null,null,null,null,null,null,null,null,null,null,null,null,null,null,null,null,null,null,null,null,null,null,null,null,null,null,null,"244",null,null,null,null,null,null,null,null,null,null,null,null,"341",null,null,null,null,null,null,null,null,null,null,null,null,{"$f":"'Таблица 2.2'!H45+'Таблица 2.2'!H48","v":0}]
["увеличение стоимости материальных запасов",null,null,null,null,null,null,null,null,null,null,null,null,null,null,null,null,null,null,null,null,null,null,null,null,null,null,null,null,null,null,null,null,null,null,null,null,null,null,null,null,null,null,null,null,null,null,null,null,null,null,null,null,null,null,null,null,null,null,null,null,null,null,null,null,null,null,null,null,null,null,null,null,null,null,null,null,null,null,null,null,null,null,"244",null,null,null,null,null,null,null,null,null,null,null,null,"342",null,null,null,null,null,null,null,null,null,null,null,null,{"$f":"'Таблица 2.2'!H44+'Таблица 2.2'!H47+'Таблица 2.2'!H82","v":871190},null,null,null,null,null,null,null,null,null,null,null,null,{"$f":"25000+121675","v":146675},null,null,null,null,null,null,null,null,null,null,null,null,{"$f":"25000+121675","v":146675}]
["увеличение стоимости материальных запасов",null,null,null,null,null,null,null,null,null,null,null,null,null,null,null,null,null,null,null,null,null,null,null,null,null,null,null,null,null,null,null,null,null,null,null,null,null,null,null,null,null,null,null,null,null,null,null,null,null,null,null,null,null,null,null,null,null,null,null,null,null,null,null,null,null,null,null,null,null,null,null,null,null,null,null,null,null,null,null,null,null,null,"244",null,null,null,null,null,null,null,null,null,null,null,null,"344",null,null,null,null,null,null,null,null,null,null,null,null,{"$f":"'Таблица 2.2'!H132+'Таблица 2.2'!H133","v":0}]
["увеличение стоимости материальных запасов",null,null,null,null,null,null,null,null,null,null,null,null,null,null,null,null,null,null,null,null,null,null,null,null,null,null,null,null,null,null,null,null,null,null,null,null,null,null,null,null,null,null,null,null,null,null,null,null,null,null,null,null,null,null,null,null,null,null,null,null,null,null,null,null,null,null,null,null,null,null,null,null,null,null,null,null,null,null,null,null,null,null,"244",null,null,null,null,null,null,null,null,null,null,null,null,"345",null,null,null,null,null,null,null,null,null,null,null,null,{"$f":"'Таблица 2.2'!H46+'Таблица 2.2'!H49","v":6720},null,null,null,null,null,null,null,null,null,null,null,null,6720,null,null,null,null,null,null,null,null,null,null,null,null,6720]
["увеличение стоимости прочих материальных запасов",null,null,null,null,null,null,null,null,null,null,null,null,null,null,null,null,null,null,null,null,null,null,null,null,null,null,null,null,null,null,null,null,null,null,null,null,null,null,null,null,null,null,null,null,null,null,null,null,null,null,null,null,null,null,null,null,null,null,null,null,null,null,null,null,null,null,null,null,null,null,null,null,null,null,null,null,null,null,null,null,null,null,"244",null,null,null,null,null,null,null,null,null,null,null,null,"346",null,null,null,null,null,null,null,null,null,null,null,null,{"$f":"'Таблица 2.2'!H43+'Таблица 2.2'!H84+'Таблица 2.2'!H103+'Таблица 2.2'!H107+'Таблица 2.2'!H115","v":0}]
["увеличение стоимости основных средств",null,null,null,null,null,null,null,null,null,null,null,null,null,null,null,null,null,null,null,null,null,null,null,null,null,null,null,null,null,null,null,null,null,null,null,null,null,null,null,null,null,null,null,null,null,null,null,null,null,null,null,null,null,null,null,null,null,null,null,null,null,null,null,null,null,null,null,null,null,null,null,null,null,null,null,null,null,null,null,null,null,null,"244",null,null,null,null,null,null,null,null,null,null,null,null,"310",null,null,null,null,null,null,null,null,null,null,null,null,{"$f":"'Таблица 2.2'!H41+'Таблица 2.2'!H42+'Таблица 2.2'!H102+'Таблица 2.2'!H104","v":216440},null,null,null,null,null,null,null,null,null,null,null,null,47740,null,null,null,null,null,null,null,null,null,null,null,null,47740]
[]
["прочую закупку товаров, работ и услуг, всего",null,null,null,null,null,null,null,null,null,null,null,null,null,null,null,null,null,null,null,null,null,null,null,null,null,null,null,null,null,null,null,null,null,null,null,null,null,null,null,null,null,null,null,null,null,null,null,null,null,null,null,null,null,null,null,null,null,null,null,null,null,null,null,null,null,null,null,null,null,null,null,null,null,null,"2641",null,null,null,null,null,null,null,"247",null,null,null,null,null,null,null,null,null,null,null,null,null,null,null,null,null,null,null,null,null,null,null,null,null,{"$f":"DF105","v":375000},null,null,null,null,null,null,null,null,null,null,null,null,{"$f":"DS105","v":400000},null,null,null,null,null,null,null,null,null,null,null,null,{"$f":"EF105","v":400000}]
["из них:"]
["коммунальные услуги",null,null,null,null,null,null,null,null,null,null,null,null,null,null,null,null,null,null,null,null,null,null,null,null,null,null,null,null,null,null,null,null,null,null,null,null,null,null,null,null,null,null,null,null,null,null,null,null,null,null,null,null,null,null,null,null,null,null,null,null,null,null,null,null,null,null,null,null,null,null,null,null,null,null,null,null,null,null,null,null,null,null,"247",null,null,null,null,null,null,null,null,null,null,null,null,"223",null,null,null,null,null,null,null,null,null,null,null,null,{"$f":"'Таблица 2.2'!H35","v":375000},null,null,null,null,null,null,null,null,null,null,null,null,400000,null,null,null,null,null,null,null,null,null,null,null,null,400000]
["капитальные вложения в объекты государственной (муниципальной) собственности, всего",null,null,null,null,null,null,null,null,null,null,null,null,null,null,null,null,null,null,null,null,null,null,null,null,null,null,null,null,null,null,null,null,null,null,null,null,null,null,null,null,null,null,null,null,null,null,null,null,null,null,null,null,null,null,null,null,null,null,null,null,null,null,null,null,null,null,null,null,null,null,null,null,null,null,"2650",null,null,null,null,null,null,null,"400"]
["в том числе:\nприобретение объектов недвижимого имущества государственными (муниципальными) учреждениями",null,null,null,null,null,null,null,null,null,null,null,null,null,null,null,null,null,null,null,null,null,null,null,null,null,null,null,null,null,null,null,null,null,null,null,null,null,null,null,null,null,null,null,null,null,null,null,null,null,null,null,null,null,null,null,null,null,null,null,null,null,null,null,null,null,null,null,null,null,null,null,null,null,null,"2651",null,null,null,null,null,null,null,"406"]
["строительство (реконструкция) объектов недвижимого имущества государственными (муниципальными) учреждениями",null,null,null,null,null,null,null,null,null,null,null,null,null,null,null,null,null,null,null,null,null,null,null,null,null,null,null,null,null,null,null,null,null,null,null,null,null,null,null,null,null,null,null,null,null,null,null,null,null,null,null,null,null,null,null,null,null,null,null,null,null,null,null,null,null,null,null,null,null,null,null,null,null,null,"2652",null,null,null,null,null,null,null,"407"]
["Выплаты, уменьшающие доход, всего 8",null,null,null,null,null,null,null,null,null,null,null,null,null,null,null,null,null,null,null,null,null,null,null,null,null,null,null,null,null,null,null,null,null,null,null,null,null,null,null,null,null,null,null,null,null,null,null,null,null,null,null,null,null,null,null,null,null,null,null,null,null,null,null,null,null,null,null,null,null,null,null,null,null,null,"3000",null,null,null,null,null,null,null,"100",null,null,null,null,null,null,null,null,null,null,null,null,null,null,null,null,null,null,null,null,null,null,null,null,null,null,null,null,null,null,null,null,null,null,null,null,null,null,null,null,null,null,null,null,null,null,null,null,null,null,null,null,null,null,null,null,null,null,null,null,null,null,null,null,"х"]
["в том числе:\nналог на прибыль 8",null,null,null,null,null,null,null,null,null,null,null,null,null,null,null,null,null,null,null,null,null,null,null,null,null,null,null,null,null,null,null,null,null,null,null,null,null,null,null,null,null,null,null,null,null,null,null,null,null,null,null,null,null,null,null,null,null,null,null,null,null,null,null,null,null,null,null,null,null,null,null,null,null,null,"3010",null,null,null,null,null,null,null,null,null,null,null,null,null,null,null,null,null,null,null,null,null,null,null,null,null,null,null,null,null,null,null,null,null,null,null,null,null,null,null,null,null,null,null,null,null,null,null,null,null,null,null,null,null,null,null,null,null,null,null,null,null,null,null,null,null,null,null,null,null,null,null,null,"х"]
["налог на добавленную стоимость 8",null,null,null,null,null,null,null,null,null,null,null,null,null,null,null,null,null,null,null,null,null,null,null,null,null,null,null,null,null,null,null,null,null,null,null,null,null,null,null,null,null,null,null,null,null,null,null,null,null,null,null,null,null,null,null,null,null,null,null,null,null,null,null,null,null,null,null,null,null,null,null,null,null,null,"3020",null,null,null,null,null,null,null,null,null,null,null,null,null,null,null,null,null,null,null,null,null,null,null,null,null,null,null,null,null,null,null,null,null,null,null,null,null,null,null,null,null,null,null,null,null,null,null,null,null,null,null,null,null,null,null,null,null,null,null,null,null,null,null,null,null,null,null,null,null,null,null,null,"х"]
["прочие налоги, уменьшающие доход 8",null,null,null,null,null,null,null,null,null,null,null,null,null,null,null,null,null,null,null,null,null,null,null,null,null,null,null,null,null,null,null,null,null,null,null,null,null,null,null,null,null,null,null,null,null,null,null,null,null,null,null,null,null,null,null,null,null,null,null,null,null,null,null,null,null,null,null,null,null,null,null,null,null,null,"3030",null,null,null,null,null,null,null,null,null,null,null,null,null,null,null,null,null,null,null,null,null,null,null,null,null,null,null,null,null,null,null,null,null,null,null,null,null,null,null,null,null,null,null,null,null,null,null,null,null,null,null,null,null,null,null,null,null,null,null,null,null,null,null,null,null,null,null,null,null,null,null,null,"х"]
["Прочие выплаты, всего 9",null,null,null,null,null,null,null,null,null,null,null,null,null,null,null,null,null,null,null,null,null,null,null,null,null,null,null,null,null,null,null,null,null,null,null,null,null,null,null,null,null,null,null,null,null,null,null,null,null,null,null,null,null,null,null,null,null,null,null,null,null,null,null,null,null,null,null,null,null,null,null,null,null,null,"4000",null,null,null,null,null,null,null,"х",null,null,null,null,null,null,null,null,null,null,null,null,null,null,null,null,null,null,null,null,null,null,null,null,null,null,null,null,null,null,null,null,null,null,null,null,null,null,null,null,null,null,null,null,null,null,null,null,null,null,null,null,null,null,null,null,null,null,null,null,null,null,null,null,"х"]
["из них:\nвозврат в бюджет средств субсидии",null,null,null,null,null,null,null,null,null,null,null,null,null,null,null,null,null,null,null,null,null,null,null,null,null,null,null,null,null,null,null,null,null,null,null,null,null,null,null,null,null,null,null,null,null,null,null,null,null,null,null,null,null,null,null,null,null,null,null,null,null,null,null,null,null,null,null,null,null,null,null,null,null,null,"4010",null,null,null,null,null,null,null,"610",null,null,null,null,null,null,null,null,null,null,null,null,null,null,null,null,null,null,null,null,null,null,null,null,null,null,null,null,null,null,null,null,null,null,null,null,null,null,null,null,null,null,null,null,null,null,null,null,null,null,null,null,null,null,null,null,null,null,null,null,null,null,null,null,"х"]
[]
[]
["_____1_В случае утверждения закона (решения) о бюджете на текущий финансовый год и плановый период."]
["_____2_Указывается дата подписания Плана, а в случае утверждения Плана уполномоченным лицом учреждения - дата утверждения Плана."]
["_____3_В графе 3 отражаются:"]
["_____по строкам 1100 - 1900 - коды аналитической группы подвида доходов бюджетов классификации доходов бюджетов;"]
["_____по строкам 1980 - 1990 - коды аналитической группы вида источников финансирования дефицитов бюджетов классификации источников финансирования дефицитов бюджетов;"]
["_____по строкам 2000 - 2652 - коды видов расходов бюджетов классификации расходов бюджетов;"]
["_____по строкам 3000 - 3030 - коды аналитической группы подвида доходов бюджетов классификации доходов бюджетов, по которым планируется уплата налогов, уменьшающих доход (в том числе налог на прибыль, налог на добавленную стоимость, единый налог на вмененный доход для отдельных видов деятельности);"]
["_____по строкам 4000 - 4040 - коды аналитической группы вида источников финансирования дефицитов бюджетов классификации источников финансирования дефицитов бюджетов."]
["_____4_В графе 4 указывается код классификации операций сектора государственного управления в соответствии с Порядком применения классификации операций сектора государственного управления, утвержденным приказом Министерства финансов Российской Федерации от 29 ноября 2017 г. № 209н (зарегистрирован в Министерстве юстиции Российской Федерации 12 февраля 2018 г., регистрационный номер 50003), и (или) коды иных аналитических показателей, в случае, если Порядком органа - учредителя предусмотрена указанная детализация."]
["_____5_По строкам 0001 и 0002 указываются планируемые суммы остатков средств на начало и на конец планируемого года, если указанные показатели по решению органа, осуществляющего функции и полномочия учредителя, планируются на этапе формирования проекта Плана  либо указываются фактические остатки средств при внесении изменений в утвержденный План после завершения отчетного финансового года."]
["_____6_Показатели прочих поступлений включают в себя в том числе показатели увеличения денежных средств за счет возврата дебиторской задолженности прошлых лет, включая возврат предоставленных займов (микрозаймов), а также за счет возврата средств, размещенных на банковских депозитах. При формировании Плана (проекта Плана) обособленному(ым) подразделению(ям) показатель прочих поступлений включает показатель поступлений в рамках расчетов между головным учреждением и обособленным подразделением."]
["_____7_Показатели выплат по расходам на закупки товаров, работ, услуг, отраженные в строке 2600 Раздела 1 \"Поступления и выплаты\" Плана, подлежат детализации в Разделе 2 \"Сведения по выплатам на закупку товаров, работ, услуг\" Плана."]
["_____8_Показатель отражается со знаком \"минус\"."]
["_____9_Показатели прочих выплат включают в себя в том числе показатели уменьшения денежных средств за счет возврата средств субсидий, предоставленных до начала текущего финансового года, предоставления займов (микрозаймов), размещения автономными учреждениями денежных средств на банковских депозитах. При формировании Плана (проекта Плана) обособленному(ым) подразделению(ям) показатель прочих выплат включает показатель поступлений в рамках расчетов между головным учреждением и обособленным подразделением."]

{"sheet":"стр.5_6","index":2,"n_rows":60,"n_cols":173,"rows_kept":60,"cut":false,"hidden":false,"merged":[[54,0,54,160],[55,0,55,160],[59,0,59,160],[50,0,50,1],[50,2,50,4],[50,5,50,6],[50,8,50,22],[50,23,50,25],[50,26,50,28],[44,0,44,90],[45,0,45,90],[47,0,47,24],[47,33,47,90],[48,0,48,24],[48,33,48,90],[40,8,40,9],[40,10,40,12],[40,13,40,14],[40,16,40,30],[40,31,40,33],[40,34,40,36],[37,38,37,55],[37,58,37,75],[37,78,37,95],[38,38,38,55],[38,58,38,75],[38,78,38,95],[31,8,31,90],[34,42,34,59],[34,62,34,73],[34,76,34,95],[35,42,35,59],[35,62,35,73],[35,76,35,95],[29,135,29,147],[29,148,29,160],[30,0,31,7],[30,8,30,90],[30,91,31,98],[30,99,31,108],[30,109,31,121],[30,122,31,134],[30,135,31,147],[30,148,31,160],[29,0,29,7],[29,8,29,90],[29,91,29,98],[29,99,29,108],[29,109,29,121],[29,122,29,134],[27,135,27,147],[27,148,27,160],[28,8,28,90],[28,91,28,98],[28,99,28,108],[28,109,28,121],[28,122,28,134],[28,135,28,147],[28,148,28,160],[25,135,25,147],[25,148,25,160],[26,8,26,90],[26,91,26,98],[26,99,26,108],[26,109,26,121],[26,122,26,134],[26,135,26,147],[26,148,26,160],[25,0,28,7],[25,8,25,90],[25,91,25,98],[25,99,25,108],[25,109,25,121],[25,122,25,134],[27,8,27,90],[27,91,27,98],[27,99,27,108],[27,109,27,121],[27,122,27,134],[23,135,23,147],[23,148,23,160],[24,0,24,7],[24,8,24,90],[24,91,24,98],[24,99,24,108],[24,109,24,121],[24,122,24,134],[24,135,24,147],[24,148,24,160],[23,0,23,7],[23,8,23,90],[23,91,23,98],[23,99,23,108],[23,109,23,121],[23,122,23,134],[21,135,21,147],[21,148,21,160],[22,0,22,7],[22,8,22,90],[22,91,22,98],[22,99,22,108],[22,109,22,121],[22,122,22,134],[22,135,22,147],[22,148,22,160],[21,0,21,7],[21,8,21,90],[21,91,21,98],[21,99,21,108],[21,109,21,121],[21,122,21,134],[19,135,19,147],[19,148,19,160],[20,0,20,7],[20,8,20,90],[20,91,20,98],[20,99,20,108],[20,109,20,121],[20,122,20,134],[20,135,20,147],[20,148,20,160],[19,0,19,7],[19,8,19,90],[19,91,19,98],[19,99,19,108],[19,109,19,121],[19,122,19,134],[17,135,17,147],[17,148,17,160],[18,0,18,7],[18,8,18,90],[18,91,18,98],[18,99,18,108],[18,109,18,121],[18,122,18,134],[18,135,18,147],[18,148,18,160],[17,0,17,7],[17,8,17,90],[17,91,17,98],[17,99,17,108],[17,109,17,121],[17,122,17,134],[15,135,15,147],[15,148,15,160],[16,0,16,7],[16,8,16,90],[16,91,16,98],[16,99,16,108],[16,109,16,121],[16,122,16,134],[16,135,16,147],[16,148,16,160],[15,0,15,7],[15,8,15,90],[15,91,15,98],[15,99,15,108],[15,109,15,121],[15,122,15,134],[13,135,13,147],[13,148,13,160],[14,0,14,7],[14,8,14,90],[14,91,14,98],[14,99,14,108],[14,109,14,121],[14,122,14,134],[14,135,14,147],[14,148,14,160],[13,0,13,7],[13,8,13,90],[13,91,13,98],[13,99,13,108],[13,109,13,121],[13,122,13,134],[11,135,11,147],[11,148,11,160],[12,0,12,7],[12,8,12,90],[12,91,12,98],[12,99,12,108],[12,109,12,121],[12,122,12,134],[12,135,12,147],[12,148,12,160],[11,0,11,7],[11,8,11,90],[11,91,11,98],[11,99,11,108],[11,109,11,121],[11,122,11,134],[9,135,9,147],[9,148,9,160],[10,0,10,7],[10,8,10,90],[10,91,10,98],[10,99,10,108],[10,109,10,121],[10,122,10,134],[10,135,10,147],[10,148,10,160],[9,0,9,7],[9,8,9,90],[9,91,9,98],[9,99,9,108],[9,109,9,121],[9,122,9,134],[7,135,7,147],[7,148,7,160],[8,0,8,7],[8,8,8,90],[8,91,8,98],[8,99,8,108],[8,109,8,121],[8,122,8,134],[8,135,8,147],[8,148,8,160],[7,0,7,7],[7,8,7,90],[7,91,7,98],[7,99,7,108],[7,109,7,121],[7,122,7,134],[5,0,5,7],[5,8,5,90],[5,91,5,98],[5,99,5,108],[5,109,5,121],[5,122,5,134],[5,135,5,147],[5,148,5,160],[6,0,6,7],[6,8,6,90],[6,91,6,98],[6,99,6,108],[6,109,6,121],[6,122,6,134],[6,135,6,147],[6,148,6,160],[3,128,3,130],[3,131,3,134],[3,135,3,140],[3,141,3,143],[3,144,3,147],[3,148,4,160],[0,1,0,159],[2,0,4,7],[2,8,4,90],[2,91,4,98],[2,99,4,108],[2,109,2,160],[3,109,3,114],[3,115,3,117],[3,118,3,121],[3,122,3,127],[4,109,4,121],[4,122,4,134],[4,135,4,147]]}
[null,"Раздел 2. Сведения по выплатам на закупки товаров, работ, услуг 10"]
[]
["№\nп/п",null,null,null,null,null,null,null,"Наименование показателя",null,null,null,null,null,null,null,null,null,null,null,null,null,null,null,null,null,null,null,null,null,null,null,null,null,null,null,null,null,null,null,null,null,null,null,null,null,null,null,null,null,null,null,null,null,null,null,null,null,null,null,null,null,null,null,null,null,null,null,null,null,null,null,null,null,null,null,null,null,null,null,null,null,null,null,null,null,null,null,null,null,null,"Коды\nстрок",null,null,null,null,null,null,null,"Год\nначала закупки",null,null,null,null,null,null,null,null,null,"Сумма"]
[null,null,null,null,null,null,null,null,null,null,null,null,null,null,null,null,null,null,null,null,null,null,null,null,null,null,null,null,null,null,null,null,null,null,null,null,null,null,null,null,null,null,null,null,null,null,null,null,null,null,null,null,null,null,null,null,null,null,null,null,null,null,null,null,null,null,null,null,null,null,null,null,null,null,null,null,null,null,null,null,null,null,null,null,null,null,null,null,null,null,null,null,null,null,null,null,null,null,null,null,null,null,null,null,null,null,null,null,null,"на 20",null,null,null,null,null,"23",null,null," г.",null,null,null,"на 20",null,null,null,null,null,"24",null,null," г.",null,null,null,"на 20",null,null,null,null,null,"25",null,null," г.",null,null,null,"за пределами планового периода"]
[null,null,null,null,null,null,null,null,null,null,null,null,null,null,null,null,null,null,null,null,null,null,null,null,null,null,null,null,null,null,null,null,null,null,null,null,null,null,null,null,null,null,null,null,null,null,null,null,null,null,null,null,null,null,null,null,null,null,null,null,null,null,null,null,null,null,null,null,null,null,null,null,null,null,null,null,null,null,null,null,null,null,null,null,null,null,null,null,null,null,null,null,null,null,null,null,null,null,null,null,null,null,null,null,null,null,null,null,null,"(текущий финансовый год)",null,null,null,null,null,null,null,null,null,null,null,null,"(первый год планового периода)",null,null,null,null,null,null,null,null,null,null,null,null,"(второй год планового периода)"]
["1",null,null,null,null,null,null,null,"2",null,null,null,null,null,null,null,null,null,null,null,null,null,null,null,null,null,null,null,null,null,null,null,null,null,null,null,null,null,null,null,null,null,null,null,null,null,null,null,null,null,null,null,null,null,null,null,null,null,null,null,null,null,null,null,null,null,null,null,null,null,null,null,null,null,null,null,null,null,null,null,null,null,null,null,null,null,null,null,null,null,null,"3",null,null,null,null,null,null,null,"4",null,null,null,null,null,null,null,null,null,"5",null,null,null,null,null,null,null,null,null,null,null,null,"6",null,null,null,null,null,null,null,null,null,null,null,null,"7",null,null,null,null,null,null,null,null,null,null,null,null,"8"]
[1,null,null,null,null,null,null,null,"Выплаты на закупку товаров, работ, услуг, всего 11",null,null,null,null,null,null,null,null,null,null,null,null,null,null,null,null,null,null,null,null,null,null,null,null,null,null,null,null,null,null,null,null,null,null,null,null,null,null,null,null,null,null,null,null,null,null,null,null,null,null,null,null,null,null,null,null,null,null,null,null,null,null,null,null,null,null,null,null,null,null,null,null,null,null,null,null,null,null,null,null,null,null,"26000",null,null,null,null,null,null,null,"х",null,null,null,null,null,null,null,null,null,{"$f":"стр.1_4!DF86","v":1514350},null,null,null,null,null,null,null,null,null,null,null,null,{"$f":"стр.1_4!DS86","v":616135},null,null,null,null,null,null,null,null,null,null,null,null,{"$f":"стр.1_4!EF86","v":616135}]
["1.1",null,null,null,null,null,null,null,"в том числе:\nпо контрактам (договорам), заключенным до начала текущего финансового года без применения норм Федерального закона от 5 апреля 2013 г. № 44-ФЗ \"О контрактной системе в сфере закупок товаров, работ, услуг для обеспечения государственных и муниципальных нужд\" (Собрание законодательства Российской Федерации, 2013, № 14, ст. 1652; 2018, № 32, ст. 5104) (далее - Федеральный закон № 44-ФЗ) и Федерального закона от 18 июля 2011 г. № 223-ФЗ \"О закупках товаров, работ, услуг отдельными видами юридических лиц\" (Собрание законодательства Российской Федерации, 2011, № 30, ст. 4571; 2018, № 32,\nст. 5135) (далее - Федеральный закон № 223-ФЗ)12",null,null,null,null,null,null,null,null,null,null,null,null,null,null,null,null,null,null,null,null,null,null,null,null,null,null,null,null,null,null,null,null,null,null,null,null,null,null,null,null,null,null,null,null,null,null,null,null,null,null,null,null,null,null,null,null,null,null,null,null,null,null,null,null,null,null,null,null,null,null,null,null,null,null,null,null,null,null,null,null,null,null,"26100",null,null,null,null,null,null,null,"х"]
["1.2",null,null,null,null,null,null,null,"по контрактам (договорам), планируемым к заключению в соответствующем финансовом году без применения норм Федерального закона № 44-ФЗ и Федерального закона № 223-ФЗ 12",null,null,null,null,null,null,null,null,null,null,null,null,null,null,null,null,null,null,null,null,null,null,null,null,null,null,null,null,null,null,null,null,null,null,null,null,null,null,null,null,null,null,null,null,null,null,null,null,null,null,null,null,null,null,null,null,null,null,null,null,null,null,null,null,null,null,null,null,null,null,null,null,null,null,null,null,null,null,null,null,null,null,"26200",null,null,null,null,null,null,null,"х"]
["1.3",null,null,null,null,null,null,null,"по контрактам (договорам), заключенным до начала текущего финансового года с учетом требований Федерального закона № 44-ФЗ и Федерального закона № 223-ФЗ 13",null,null,null,null,null,null,null,null,null,null,null,null,null,null,null,null,null,null,null,null,null,null,null,null,null,null,null,null,null,null,null,null,null,null,null,null,null,null,null,null,null,null,null,null,null,null,null,null,null,null,null,null,null,null,null,null,null,null,null,null,null,null,null,null,null,null,null,null,null,null,null,null,null,null,null,null,null,null,null,null,null,null,"26300",null,null,null,null,null,null,null,"х"]
["1.4",null,null,null,null,null,null,null,"по контрактам (договорам), планируемым к заключению в соответствующем финансовом году с учетом требований Федерального закона № 44-ФЗ и Федерального закона № 223-ФЗ 13",null,null,null,null,null,null,null,null,null,null,null,null,null,null,null,null,null,null,null,null,null,null,null,null,null,null,null,null,null,null,null,null,null,null,null,null,null,null,null,null,null,null,null,null,null,null,null,null,null,null,null,null,null,null,null,null,null,null,null,null,null,null,null,null,null,null,null,null,null,null,null,null,null,null,null,null,null,null,null,null,null,null,"26400",null,null,null,null,null,null,null,"х",null,null,null,null,null,null,null,null,null,{"$f":"DF12+DF15+DF22","v":1514350},null,null,null,null,null,null,null,null,null,null,null,null,{"$f":"DS12+DS15+DS22","v":616135},null,null,null,null,null,null,null,null,null,null,null,null,{"$f":"EF12+EF15+EF22","v":616135}]
["1.4.1",null,null,null,null,null,null,null,"в том числе:\nза счет субсидий, предоставляемых на финансовое обеспечение выполнения государственного (муниципального) задания",null,null,null,null,null,null,null,null,null,null,null,null,null,null,null,null,null,null,null,null,null,null,null,null,null,null,null,null,null,null,null,null,null,null,null,null,null,null,null,null,null,null,null,null,null,null,null,null,null,null,null,null,null,null,null,null,null,null,null,null,null,null,null,null,null,null,null,null,null,null,null,null,null,null,null,null,null,null,null,null,null,null,"26410",null,null,null,null,null,null,null,"х",null,null,null,null,null,null,null,null,null,{"$f":"'Таблица 2.2'!H31","v":614125},null,null,null,null,null,null,null,null,null,null,null,null,{"$f":"стр.1_4!DS90+стр.1_4!DS103","v":616135},null,null,null,null,null,null,null,null,null,null,null,null,{"$f":"стр.1_4!EF90+стр.1_4!EF103","v":616135}]
["1.4.1.1",null,null,null,null,null,null,null,"в том числе:\nв соответствии с Федеральным законом № 44-ФЗ",null,null,null,null,null,null,null,null,null,null,null,null,null,null,null,null,null,null,null,null,null,null,null,null,null,null,null,null,null,null,null,null,null,null,null,null,null,null,null,null,null,null,null,null,null,null,null,null,null,null,null,null,null,null,null,null,null,null,null,null,null,null,null,null,null,null,null,null,null,null,null,null,null,null,null,null,null,null,null,null,null,null,"26411",null,null,null,null,null,null,null,"х",null,null,null,null,null,null,null,null,null,{"$f":"DF12","v":614125},null,null,null,null,null,null,null,null,null,null,null,null,{"$f":"DS12","v":616135},null,null,null,null,null,null,null,null,null,null,null,null,{"$f":"EF12","v":616135}]
["1.4.1.2",null,null,null,null,null,null,null,"в соответствии с Федеральным законом № 223-ФЗ 14",null,null,null,null,null,null,null,null,null,null,null,null,null,null,null,null,null,null,null,null,null,null,null,null,null,null,null,null,null,null,null,null,null,null,null,null,null,null,null,null,null,null,null,null,null,null,null,null,null,null,null,null,null,null,null,null,null,null,null,null,null,null,null,null,null,null,null,null,null,null,null,null,null,null,null,null,null,null,null,null,null,null,"26412",null,null,null,null,null,null,null,"х"]
["1.4.2",null,null,null,null,null,null,null,"за счет субсидий, предоставляемых в соответствии с абзацем вторым пункта 1 статьи 78.1 Бюджетного кодекса Российской Федерации",null,null,null,null,null,null,null,null,null,null,null,null,null,null,null,null,null,null,null,null,null,null,null,null,null,null,null,null,null,null,null,null,null,null,null,null,null,null,null,null,null,null,null,null,null,null,null,null,null,null,null,null,null,null,null,null,null,null,null,null,null,null,null,null,null,null,null,null,null,null,null,null,null,null,null,null,null,null,null,null,null,null,"26420",null,null,null,null,null,null,null,"х",null,null,null,null,null,null,null,null,null,{"$f":"DF16","v":168700}]
["1.4.2.1",null,null,null,null,null,null,null,"в том числе:\nв соответствии с Федеральным законом № 44-ФЗ",null,null,null,null,null,null,null,null,null,null,null,null,null,null,null,null,null,null,null,null,null,null,null,null,null,null,null,null,null,null,null,null,null,null,null,null,null,null,null,null,null,null,null,null,null,null,null,null,null,null,null,null,null,null,null,null,null,null,null,null,null,null,null,null,null,null,null,null,null,null,null,null,null,null,null,null,null,null,null,null,null,null,"26421",null,null,null,null,null,null,null,"х",null,null,null,null,null,null,null,null,null,{"$f":"'Таблица 2.2'!H117+'Таблица 2.2'!H120+'Таблица 2.2'!H130+'Таблица 2.2'!H131+'Таблица 2.2'!H121+'Таблица 2.2'!H123+'Таблица 2.2'!H134+'Таблица 2.2'!H132+'Таблица 2.2'!H133+'Таблица 2.2'!H102+'Таблица 2.2'!H104+'Таблица 2.2'!H105+'Таблица 2.2'!H103+'Таблица 2.2'!H106+'Таблица 2.2'!H107+'Таблица 2.2'!H101+'Таблица 2.2'!H115+'Таблица 2.2'!H100","v":168700}]
["1.4.2.2",null,null,null,null,null,null,null,"в соответствии с Федеральным законом № 223-ФЗ 14",null,null,null,null,null,null,null,null,null,null,null,null,null,null,null,null,null,null,null,null,null,null,null,null,null,null,null,null,null,null,null,null,null,null,null,null,null,null,null,null,null,null,null,null,null,null,null,null,null,null,null,null,null,null,null,null,null,null,null,null,null,null,null,null,null,null,null,null,null,null,null,null,null,null,null,null,null,null,null,null,null,null,"26422",null,null,null,null,null,null,null,"х"]
["1.4.3",null,null,null,null,null,null,null,"за счет субсидий, предоставляемых на осуществление капитальных вложений 15",null,null,null,null,null,null,null,null,null,null,null,null,null,null,null,null,null,null,null,null,null,null,null,null,null,null,null,null,null,null,null,null,null,null,null,null,null,null,null,null,null,null,null,null,null,null,null,null,null,null,null,null,null,null,null,null,null,null,null,null,null,null,null,null,null,null,null,null,null,null,null,null,null,null,null,null,null,null,null,null,null,null,"26430",null,null,null,null,null,null,null,"х"]
["1.4.4",null,null,null,null,null,null,null,"за счет средств обязательного медицинского страхования",null,null,null,null,null,null,null,null,null,null,null,null,null,null,null,null,null,null,null,null,null,null,null,null,null,null,null,null,null,null,null,null,null,null,null,null,null,null,null,null,null,null,null,null,null,null,null,null,null,null,null,null,null,null,null,null,null,null,null,null,null,null,null,null,null,null,null,null,null,null,null,null,null,null,null,null,null,null,null,null,null,null,"26440",null,null,null,null,null,null,null,"х"]
["1.4.4.1",null,null,null,null,null,null,null,"в том числе:\nв соответствии с Федеральным законом № 44-ФЗ",null,null,null,null,null,null,null,null,null,null,null,null,null,null,null,null,null,null,null,null,null,null,null,null,null,null,null,null,null,null,null,null,null,null,null,null,null,null,null,null,null,null,null,null,null,null,null,null,null,null,null,null,null,null,null,null,null,null,null,null,null,null,null,null,null,null,null,null,null,null,null,null,null,null,null,null,null,null,null,null,null,null,"26441",null,null,null,null,null,null,null,"х",null,null,null,null,null,null,null,null,null,null,null,null,null,null,null,null,null,null,null,null,null,null,null,null,null,null,null,null,null,null,null,null,null,null,null,null,null,null,null,null,null,null,null,null,null,null,null,null,null,null,null,null,null,null,null,null,null,null,null,null,null,null,null,null,null,null,null,null,null,null,null,null,{"$f":"DF13+DF22+DF15","v":1514350}]
["1.4.4.2",null,null,null,null,null,null,null,"в соответствии с Федеральным законом № 223-ФЗ 14",null,null,null,null,null,null,null,null,null,null,null,null,null,null,null,null,null,null,null,null,null,null,null,null,null,null,null,null,null,null,null,null,null,null,null,null,null,null,null,null,null,null,null,null,null,null,null,null,null,null,null,null,null,null,null,null,null,null,null,null,null,null,null,null,null,null,null,null,null,null,null,null,null,null,null,null,null,null,null,null,null,null,"26442",null,null,null,null,null,null,null,"х"]
["1.4.5",null,null,null,null,null,null,null,"за счет прочих источников финансового обеспечения",null,null,null,null,null,null,null,null,null,null,null,null,null,null,null,null,null,null,null,null,null,null,null,null,null,null,null,null,null,null,null,null,null,null,null,null,null,null,null,null,null,null,null,null,null,null,null,null,null,null,null,null,null,null,null,null,null,null,null,null,null,null,null,null,null,null,null,null,null,null,null,null,null,null,null,null,null,null,null,null,null,null,"26450",null,null,null,null,null,null,null,"х",null,null,null,null,null,null,null,null,null,{"$f":"DF23","v":731525}]
["1.4.5.1",null,null,null,null,null,null,null,"в том числе:\nв соответствии с Федеральным законом № 44-ФЗ",null,null,null,null,null,null,null,null,null,null,null,null,null,null,null,null,null,null,null,null,null,null,null,null,null,null,null,null,null,null,null,null,null,null,null,null,null,null,null,null,null,null,null,null,null,null,null,null,null,null,null,null,null,null,null,null,null,null,null,null,null,null,null,null,null,null,null,null,null,null,null,null,null,null,null,null,null,null,null,null,null,null,"26451",null,null,null,null,null,null,null,"х",null,null,null,null,null,null,null,null,null,{"$f":"'Таблица 2.2'!H71","v":731525}]
["1.4.5.2",null,null,null,null,null,null,null,"в соответствии с Федеральным законом № 223-ФЗ",null,null,null,null,null,null,null,null,null,null,null,null,null,null,null,null,null,null,null,null,null,null,null,null,null,null,null,null,null,null,null,null,null,null,null,null,null,null,null,null,null,null,null,null,null,null,null,null,null,null,null,null,null,null,null,null,null,null,null,null,null,null,null,null,null,null,null,null,null,null,null,null,null,null,null,null,null,null,null,null,null,null,"26452",null,null,null,null,null,null,null,"х"]
["2",null,null,null,null,null,null,null,"Итого по контрактам, планируемым к заключению в соответствующем финансовом году в соответствии с Федеральным законом № 44-ФЗ, по соответствующему году закупки 16",null,null,null,null,null,null,null,null,null,null,null,null,null,null,null,null,null,null,null,null,null,null,null,null,null,null,null,null,null,null,null,null,null,null,null,null,null,null,null,null,null,null,null,null,null,null,null,null,null,null,null,null,null,null,null,null,null,null,null,null,null,null,null,null,null,null,null,null,null,null,null,null,null,null,null,null,null,null,null,null,null,null,"26500",null,null,null,null,null,null,null,"х"]
[null,null,null,null,null,null,null,null,"в том числе по году начала закупки:",null,null,null,null,null,null,null,null,null,null,null,null,null,null,null,null,null,null,null,null,null,null,null,null,null,null,null,null,null,null,null,null,null,null,null,null,null,null,null,null,null,null,null,null,null,null,null,null,null,null,null,null,null,null,null,null,null,null,null,null,null,null,null,null,null,null,null,null,null,null,null,null,null,null,null,null,null,null,null,null,null,null,"26510"]
[null,null,null,null,null,null,null,null,null,null,null,null,null,null,null,null,null,null,null,null,null,null,null,null,null,null,null,null,null,null,null,null,null,null,null,null,null,null,null,null,null,null,null,null,null,null,null,null,null,null,null,null,null,null,null,null,null,null,null,null,null,null,null,null,null,null,null,null,null,null,null,null,null,null,null,null,null,null,null,null,null,null,null,null,null,null,null,null,null,null,null,null,null,null,null,null,null,null,null,"2023",null,null,null,null,null,null,null,null,null,{"$f":"DF7","v":1514350}]
[null,null,null,null,null,null,null,null,null,null,null,null,null,null,null,null,null,null,null,null,null,null,null,null,null,null,null,null,null,null,null,null,null,null,null,null,null,null,null,null,null,null,null,null,null,null,null,null,null,null,null,null,null,null,null,null,null,null,null,null,null,null,null,null,null,null,null,null,null,null,null,null,null,null,null,null,null,null,null,null,null,null,null,null,null,null,null,null,null,null,null,null,null,null,null,null,null,null,null,"2024",null,null,null,null,null,null,null,null,null,null,null,null,null,null,null,null,null,null,null,null,null,null,{"$f":"DS7","v":616135}]
[null,null,null,null,null,null,null,null,null,null,null,null,null,null,null,null,null,null,null,null,null,null,null,null,null,null,null,null,null,null,null,null,null,null,null,null,null,null,null,null,null,null,null,null,null,null,null,null,null,null,null,null,null,null,null,null,null,null,null,null,null,null,null,null,null,null,null,null,null,null,null,null,null,null,null,null,null,null,null,null,null,null,null,null,null,null,null,null,null,null,null,null,null,null,null,null,null,null,null,"2025",null,null,null,null,null,null,null,null,null,null,null,null,null,null,null,null,null,null,null,null,null,null,null,null,null,null,null,null,null,null,null,null,null,null,null,{"$f":"EF7","v":616135}]
["3",null,null,null,null,null,null,null,"Итого по договорам, планируемым к заключению в соответствующем финансовом году в соответствии с Федеральным законом № 223-ФЗ, по соответствующему году закупки",null,null,null,null,null,null,null,null,null,null,null,null,null,null,null,null,null,null,null,null,null,null,null,null,null,null,null,null,null,null,null,null,null,null,null,null,null,null,null,null,null,null,null,null,null,null,null,null,null,null,null,null,null,null,null,null,null,null,null,null,null,null,null,null,null,null,null,null,null,null,null,null,null,null,null,null,null,null,null,null,null,null,"26600",null,null,null,null,null,null,null,"х"]
[null,null,null,null,null,null,null,null,"в том числе по году начала закупки:",null,null,null,null,null,null,null,null,null,null,null,null,null,null,null,null,null,null,null,null,null,null,null,null,null,null,null,null,null,null,null,null,null,null,null,null,null,null,null,null,null,null,null,null,null,null,null,null,null,null,null,null,null,null,null,null,null,null,null,null,null,null,null,null,null,null,null,null,null,null,null,null,null,null,null,null,null,null,null,null,null,null,"26610"]
[]
[]
[null,null,null,null,null,null,null,null,"Руководитель учреждения"]
[null,null,null,null,null,null,null,null,"(уполномоченное лицо учреждения)",null,null,null,null,null,null,null,null,null,null,null,null,null,null,null,null,null,null,null,null,null,null,null,null,null,null,null,null,null,null,null,null,null,"Заведующий",null,null,null,null,null,null,null,null,null,null,null,null,null,null,null,null,null,null,null,null,null,null,null,null,null,null,null,null,null,null,null,null,null,"А. А. Елизарова"]
[null,null,null,null,null,null,null,null,null,null,null,null,null,null,null,null,null,null,null,null,null,null,null,null,null,null,null,null,null,null,null,null,null,null,null,null,null,null,null,null,null,null,"(должность)",null,null,null,null,null,null,null,null,null,null,null,null,null,null,null,null,null,null,null,"(подпись)",null,null,null,null,null,null,null,null,null,null,null,null,null,"(расшифровка подписи)"]
[]
[null,null,null,null,null,null,null,null,"Исполнитель",null,null,null,null,null,null,null,null,null,null,null,null,null,null,null,null,null,null,null,null,null,null,null,null,null,null,null,null,null,"главный экономист",null,null,null,null,null,null,null,null,null,null,null,null,null,null,null,null,null,null,null,"И.А. Корнева",null,null,null,null,null,null,null,null,null,null,null,null,null,null,null,null,null,null,null,"(84578)2-12-84"]
[null,null,null,null,null,null,null,null,null,null,null,null,null,null,null,null,null,null,null,null,null,null,null,null,null,null,null,null,null,null,null,null,null,null,null,null,null,null,"(должность)",null,null,null,null,null,null,null,null,null,null,null,null,null,null,null,null,null,null,null,"(фамилия, инициалы)",null,null,null,null,null,null,null,null,null,null,null,null,null,null,null,null,null,null,null,"(телефон)"]
[]
[null,null,null,null,null,null,null,null,"\"",null,"29",null,null,"\"",null,null,"12",null,null,null,null,null,null,null,null,null,null,null,null,null,null,20,null,null,"22",null,null," г."]
[]
[]
["СОГЛАСОВАНО"]
[]
["(наименование должности уполномоченного лица органа-учредителя)"]
[]
[]
["(подпись)",null,null,null,null,null,null,null,null,null,null,null,null,null,null,null,null,null,null,null,null,null,null,null,null,null,null,null,null,null,null,null,null,"(расшифровка подписи)"]
[]
["\"",null,null,null,null,"\"",null,null,null,null,null,null,null,null,null,null,null,null,null,null,null,null,null,20,null,null,null,null,null," г."]
[]
[]
["_____10_В Разделе 2 \"Сведения по выплатам на закупку товаров, работ, услуг\" Плана детализируются показатели выплат по расходам на закупку товаров, работ, услуг, отраженные в строке 2600 Раздела 1 \"Поступления и выплаты\" Плана."]
["_____11_Плановые показатели выплат на закупку товаров, работ, услуг по строке 26000 Раздела 2 \"Сведения по выплатам на закупку товаров, работ, услуг\" Плана распределяются на выплаты по контрактам (договорам), заключенным (планируемым к заключению) в соответствии с гражданским законодательством Российской Федерации (строки 26100 и 26200), а также по контрактам (договорам), заключаемым в соответствии с требованиями законодательства Российской Федерации и иных нормативных правовых актов о контрактной системе в сфере закупок товаров, работ, услуг для государственных и муниципальных нужд, с детализацией указанных выплат по контрактам (договорам), заключенным до начала текущего финансового года (строка 26300) и планируемым к заключению в соответствующем финансовом году (строка 26400) и должны соответствовать показателям соответствующих граф по строке 2600 Раздела 1 \"Поступления и выплаты\" Плана."]
["_____12_Указывается сумма договоров (контрактов) о закупках товаров, работ, услуг, заключенных без учета требований Федерального закона № 44-ФЗ и Федерального закона № 223-ФЗ, в случаях, предусмотренных указанными федеральными законами."]
["_____13_Указывается сумма закупок товаров, работ, услуг, осуществляемых в соответствии с Федеральным законом № 44-ФЗ и Федеральным законом № 223-ФЗ."]
["_____14_Государственным (муниципальным) бюджетным учреждением показатель не формируется."]
["_____15_Указывается сумма закупок товаров, работ, услуг, осуществляемых в соответствии с Федеральным законом № 44-ФЗ."]
["_____16_Плановые показатели выплат на закупку товаров, работ, услуг по строке 26500 государственного (муниципального) бюджетного учреждения должен быть не менее суммы показателей строк 26410, 26420, 26430, 26440 по соответствующей графе, государственного (муниципального) автономного учреждения - не менее показателя строки 26430 по соответствующей графе."]